Workbook

Sheet Report_4W
A1: Name: | B1: =Nachname&", "&Vorname -> , | K1: Geburtsdatum: | L1: =Geburtsdatum -> 00:00:00 | V1: Betrachtungszeitraum: | W1: =TEXT(MIN(tDatumswerte),"tt. MMM.")&" - "&TEXT(MAX(tDatumswerte),"tt. MMM.jjjj") -> 00. Jan. - 00. Jan.1900
B3: Morgens  | E3: Mittags  | H3: Abends 
A4: Datum | B4: Syst. | C4: Diast. | D4: Puls | E4: Syst. | F4: Diast. | G4: Puls | H4: Syst. | I4: Diast. | J4: Puls

Sheet intermediate (hidden)
B2: 4W-Datentabelle: Max. Kategorie
B4: Morgens | C4: Mittags | D4: Abends | H4: Datum1 | I4: Tageszeit | J4: Datum2 | K4: Syst. | L4: Diast. | M4: Puls | N4: Kat_Morgen | O4: Kat_Mittag | P4: Kat_Abend | V4: 1 | W4: 2 | X4: 3 | Y4: 4 | Z4: 5 | AA4: 6 | AB4: 1 | AC4: 2 | AD4: 3 | AE4: 4 | AF4: 5 | AG4: 6 | AH4: 1 | AI4: 2 | AJ4: 3 | AK4: 4 | AL4: 5 | AM4: 6
B5: =MAX(VLOOKUP(Report_4W!B5,tKategorien[],3),VLOOKUP(Report_4W!C5,tKategorien[[Limit diast. ]:[Kat.]],2)) ->  | C5: =MAX(VLOOKUP(Report_4W!E5,tKategorien[],3),VLOOKUP(Report_4W!F5,tKategorien[[Limit diast. ]:[Kat.]],2)) ->  | D5: =MAX(VLOOKUP(Report_4W!H5,tKategorien[],3),VLOOKUP(Report_4W!I5,tKategorien[[Limit diast. ]:[Kat.]],2)) ->  | H5: =Start_4W -> 2022-02-14 | I5: Morgen | J5: =INT(H5)+0.25 -> 44606.25 | K5: =VLOOKUP(tSequence[[#This Row],[Datum2]],tData[[Sort]:[Puls]],2,FALSE) ->  | L5: =VLOOKUP(tSequence[[#This Row],[Datum2]],tData[[Sort]:[Puls]],3,FALSE) ->  | M5: =VLOOKUP(tSequence[[#This Row],[Datum2]],tData[[Sort]:[Puls]],4,FALSE) ->  | N5: =MAX(VLOOKUP($K5,tKategorien[],3),VLOOKUP($L5,tKategorien[[Limit diast. ]:[Kat.]],2)) ->  | O5: =MAX(VLOOKUP($K6,tKategorien[],3),VLOOKUP($L6,tKategorien[[Limit diast. ]:[Kat.]],2)) ->  | P5: =MAX(VLOOKUP($K7,tKategorien[],3),VLOOKUP($L7,tKategorien[[Limit diast. ]:[Kat.]],2)) ->  | V5: Morgens | W5: Morgens | X5: Morgens | Y5: Morgens | Z5: Morgens | AA5: Morgens | AB5: Mittags | AC5: Mittags | AD5: Mittags | AE5: Mittags | AF5: Mittags | AG5: Mittags | AH5: Abends | AI5: Abends | AJ5: Abends | AK5: Abends | AL5: Abends | AM5: Abends
B6: =MAX(VLOOKUP(Report_4W!B6,tKategorien[],3),VLOOKUP(Report_4W!C6,tKategorien[[Limit diast. ]:[Kat.]],2)) ->  | C6: =MAX(VLOOKUP(Report_4W!E6,tKategorien[],3),VLOOKUP(Report_4W!F6,tKategorien[[Limit diast. ]:[Kat.]],2)) ->  | D6: =MAX(VLOOKUP(Report_4W!H6,tKategorien[],3),VLOOKUP(Report_4W!I6,tKategorien[[Limit diast. ]:[Kat.]],2)) ->  | H6: =INT($H$5+(ROW()-5)/3) -> 2022-02-14 | I6: Mittag | J6: =INT(H6)+0.5 -> 44606.5 | K6: =VLOOKUP(tSequence[[#This Row],[Datum2]],tData[[Sort]:[Puls]],2,FALSE) ->  | L6: =VLOOKUP(tSequence[[#This Row],[Datum2]],tData[[Sort]:[Puls]],3,FALSE) ->  | M6: =VLOOKUP(tSequence[[#This Row],[Datum2]],tData[[Sort]:[Puls]],4,FALSE) ->  | V6: Kat.1 | W6: Kat.2 | X6: Kat.3 | Y6: Kat.4 | Z6: Kat.5 | AA6: Kat.6 | AB6: Kat.1 | AC6: Kat.2 | AD6: Kat.3 | AE6: Kat.4 | AF6: Kat.5 | AG6: Kat.6 | AH6: Kat.1 | AI6: Kat.2 | AJ6: Kat.3 | AK6: Kat.4 | AL6: Kat.5 | AM6: Kat.6
B7: =MAX(VLOOKUP(Report_4W!B7,tKategorien[],3),VLOOKUP(Report_4W!C7,tKategorien[[Limit diast. ]:[Kat.]],2)) ->  | C7: =MAX(VLOOKUP(Report_4W!E7,tKategorien[],3),VLOOKUP(Report_4W!F7,tKategorien[[Limit diast. ]:[Kat.]],2)) ->  | D7: =MAX(VLOOKUP(Report_4W!H7,tKategorien[],3),VLOOKUP(Report_4W!I7,tKategorien[[Limit diast. ]:[Kat.]],2)) ->  | H7: 2022-02-14 | I7: Abend | J7: =INT(H7)+0.75 -> 44606.75 | K7: =VLOOKUP(tSequence[[#This Row],[Datum2]],tData[[Sort]:[Puls]],2,FALSE) ->  | L7: =VLOOKUP(tSequence[[#This Row],[Datum2]],tData[[Sort]:[Puls]],3,FALSE) ->  | M7: =VLOOKUP(tSequence[[#This Row],[Datum2]],tData[[Sort]:[Puls]],4,FALSE) -> 
B8: =MAX(VLOOKUP(Report_4W!B8,tKategorien[],3),VLOOKUP(Report_4W!C8,tKategorien[[Limit diast. ]:[Kat.]],2)) ->  | C8: =MAX(VLOOKUP(Report_4W!E8,tKategorien[],3),VLOOKUP(Report_4W!F8,tKategorien[[Limit diast. ]:[Kat.]],2)) ->  | D8: =MAX(VLOOKUP(Report_4W!H8,tKategorien[],3),VLOOKUP(Report_4W!I8,tKategorien[[Limit diast. ]:[Kat.]],2)) ->  | H8: 2022-02-15 | I8: Morgen | J8: =INT(H8)+0.25 -> 44607.25 | K8: =VLOOKUP(tSequence[[#This Row],[Datum2]],tData[[Sort]:[Puls]],2,FALSE) ->  | L8: =VLOOKUP(tSequence[[#This Row],[Datum2]],tData[[Sort]:[Puls]],3,FALSE) ->  | M8: =VLOOKUP(tSequence[[#This Row],[Datum2]],tData[[Sort]:[Puls]],4,FALSE) ->  | N8: =MAX(VLOOKUP($K8,tKategorien[],3),VLOOKUP($L8,tKategorien[[Limit diast. ]:[Kat.]],2)) ->  | O8: =MAX(VLOOKUP($K9,tKategorien[],3),VLOOKUP($L9,tKategorien[[Limit diast. ]:[Kat.]],2)) ->  | P8: =MAX(VLOOKUP($K10,tKategorien[],3),VLOOKUP($L10,tKategorien[[Limit diast. ]:[Kat.]],2)) ->  | T8: =WEEKNUM(Start_4W,21)&"/"&YEAR(Start_4W) -> 7/2022 | U8: Morgens | V8: =COUNTIF(intermediate!$N$5:$N$25,V$4) -> 0 | W8: =COUNTIF(intermediate!$N$5:$N$25,W$4) -> 0 | X8: =COUNTIF(intermediate!$N$5:$N$25,X$4) -> 0 | Y8: =COUNTIF(intermediate!$N$5:$N$25,Y$4) -> 0 | Z8: =COUNTIF(intermediate!$N$5:$N$25,Z$4) -> 0 | AA8: =COUNTIF(intermediate!$N$5:$N$25,AA$4) -> 0
B9: =MAX(VLOOKUP(Report_4W!B9,tKategorien[],3),VLOOKUP(Report_4W!C9,tKategorien[[Limit diast. ]:[Kat.]],2)) ->  | C9: =MAX(VLOOKUP(Report_4W!E9,tKategorien[],3),VLOOKUP(Report_4W!F9,tKategorien[[Limit diast. ]:[Kat.]],2)) ->  | D9: =MAX(VLOOKUP(Report_4W!H9,tKategorien[],3),VLOOKUP(Report_4W!I9,tKategorien[[Limit diast. ]:[Kat.]],2)) ->  | H9: 2022-02-15 | I9: Mittag | J9: =INT(H9)+0.5 -> 44607.5 | K9: =VLOOKUP(tSequence[[#This Row],[Datum2]],tData[[Sort]:[Puls]],2,FALSE) ->  | L9: =VLOOKUP(tSequence[[#This Row],[Datum2]],tData[[Sort]:[Puls]],3,FALSE) ->  | M9: =VLOOKUP(tSequence[[#This Row],[Datum2]],tData[[Sort]:[Puls]],4,FALSE) ->  | U9: Mittags | AB9: =COUNTIF(intermediate!$O$5:$O$25,AB$4) -> 0 | AC9: =COUNTIF(intermediate!$O$5:$O$25,AC$4) -> 0 | AD9: =COUNTIF(intermediate!$O$5:$O$25,AD$4) -> 0 | AE9: =COUNTIF(intermediate!$O$5:$O$25,AE$4) -> 0 | AF9: =COUNTIF(intermediate!$O$5:$O$25,AF$4) -> 0 | AG9: =COUNTIF(intermediate!$O$5:$O$25,AG$4) -> 0
B10: =MAX(VLOOKUP(Report_4W!B10,tKategorien[],3),VLOOKUP(Report_4W!C10,tKategorien[[Limit diast. ]:[Kat.]],2)) ->  | C10: =MAX(VLOOKUP(Report_4W!E10,tKategorien[],3),VLOOKUP(Report_4W!F10,tKategorien[[Limit diast. ]:[Kat.]],2)) ->  | D10: =MAX(VLOOKUP(Report_4W!H10,tKategorien[],3),VLOOKUP(Report_4W!I10,tKategorien[[Limit diast. ]:[Kat.]],2)) ->  | H10: 2022-02-15 | I10: Abend | J10: =INT(H10)+0.75 -> 44607.75 | K10: =VLOOKUP(tSequence[[#This Row],[Datum2]],tData[[Sort]:[Puls]],2,FALSE) ->  | L10: =VLOOKUP(tSequence[[#This Row],[Datum2]],tData[[Sort]:[Puls]],3,FALSE) ->  | M10: =VLOOKUP(tSequence[[#This Row],[Datum2]],tData[[Sort]:[Puls]],4,FALSE) ->  | U10: Abends | AH10: =COUNTIF(intermediate!$P$5:$P$25,AH$4) -> 0 | AI10: =COUNTIF(intermediate!$P$5:$P$25,AI$4) -> 0 | AJ10: =COUNTIF(intermediate!$P$5:$P$25,AJ$4) -> 0 | AK10: =COUNTIF(intermediate!$P$5:$P$25,AK$4) -> 0 | AL10: =COUNTIF(intermediate!$P$5:$P$25,AL$4) -> 0 | AM10: =COUNTIF(intermediate!$P$5:$P$25,AM$4) -> 0
B11: =MAX(VLOOKUP(Report_4W!B11,tKategorien[],3),VLOOKUP(Report_4W!C11,tKategorien[[Limit diast. ]:[Kat.]],2)) ->  | C11: =MAX(VLOOKUP(Report_4W!E11,tKategorien[],3),VLOOKUP(Report_4W!F11,tKategorien[[Limit diast. ]:[Kat.]],2)) ->  | D11: =MAX(VLOOKUP(Report_4W!H11,tKategorien[],3),VLOOKUP(Report_4W!I11,tKategorien[[Limit diast. ]:[Kat.]],2)) ->  | H11: 2022-02-16 | I11: Morgen | J11: =INT(H11)+0.25 -> 44608.25 | K11: =VLOOKUP(tSequence[[#This Row],[Datum2]],tData[[Sort]:[Puls]],2,FALSE) ->  | L11: =VLOOKUP(tSequence[[#This Row],[Datum2]],tData[[Sort]:[Puls]],3,FALSE) ->  | M11: =VLOOKUP(tSequence[[#This Row],[Datum2]],tData[[Sort]:[Puls]],4,FALSE) ->  | N11: =MAX(VLOOKUP($K11,tKategorien[],3),VLOOKUP($L11,tKategorien[[Limit diast. ]:[Kat.]],2)) ->  | O11: =MAX(VLOOKUP($K12,tKategorien[],3),VLOOKUP($L12,tKategorien[[Limit diast. ]:[Kat.]],2)) ->  | P11: =MAX(VLOOKUP($K13,tKategorien[],3),VLOOKUP($L13,tKategorien[[Limit diast. ]:[Kat.]],2)) -> 
B12: =MAX(VLOOKUP(Report_4W!B12,tKategorien[],3),VLOOKUP(Report_4W!C12,tKategorien[[Limit diast. ]:[Kat.]],2)) ->  | C12: =MAX(VLOOKUP(Report_4W!E12,tKategorien[],3),VLOOKUP(Report_4W!F12,tKategorien[[Limit diast. ]:[Kat.]],2)) ->  | D12: =MAX(VLOOKUP(Report_4W!H12,tKategorien[],3),VLOOKUP(Report_4W!I12,tKategorien[[Limit diast. ]:[Kat.]],2)) ->  | H12: 2022-02-16 | I12: Mittag | J12: =INT(H12)+0.5 -> 44608.5 | K12: =VLOOKUP(tSequence[[#This Row],[Datum2]],tData[[Sort]:[Puls]],2,FALSE) ->  | L12: =VLOOKUP(tSequence[[#This Row],[Datum2]],tData[[Sort]:[Puls]],3,FALSE) ->  | M12: =VLOOKUP(tSequence[[#This Row],[Datum2]],tData[[Sort]:[Puls]],4,FALSE) ->  | T12: =WEEKNUM(Start_4W,21)+1&"/"&YEAR(Start_4W) -> 8/2022 | U12: Morgens | V12: =COUNTIF(intermediate!$N$26:$N$46,V$4) -> 0 | W12: =COUNTIF(intermediate!$N$26:$N$46,W$4) -> 0 | X12: =COUNTIF(intermediate!$N$26:$N$46,X$4) -> 0 | Y12: =COUNTIF(intermediate!$N$26:$N$46,Y$4) -> 0 | Z12: =COUNTIF(intermediate!$N$26:$N$46,Z$4) -> 0 | AA12: =COUNTIF(intermediate!$N$26:$N$46,AA$4) -> 0
B13: =MAX(VLOOKUP(Report_4W!B13,tKategorien[],3),VLOOKUP(Report_4W!C13,tKategorien[[Limit diast. ]:[Kat.]],2)) ->  | C13: =MAX(VLOOKUP(Report_4W!E13,tKategorien[],3),VLOOKUP(Report_4W!F13,tKategorien[[Limit diast. ]:[Kat.]],2)) ->  | D13: =MAX(VLOOKUP(Report_4W!H13,tKategorien[],3),VLOOKUP(Report_4W!I13,tKategorien[[Limit diast. ]:[Kat.]],2)) ->  | H13: 2022-02-16 | I13: Abend | J13: =INT(H13)+0.75 -> 44608.75 | K13: =VLOOKUP(tSequence[[#This Row],[Datum2]],tData[[Sort]:[Puls]],2,FALSE) ->  | L13: =VLOOKUP(tSequence[[#This Row],[Datum2]],tData[[Sort]:[Puls]],3,FALSE) ->  | M13: =VLOOKUP(tSequence[[#This Row],[Datum2]],tData[[Sort]:[Puls]],4,FALSE) ->  | U13: Mittags | AB13: =COUNTIF(intermediate!$O$26:$O$46,AB$4) -> 0 | AC13: =COUNTIF(intermediate!$O$26:$O$46,AC$4) -> 0 | AD13: =COUNTIF(intermediate!$O$26:$O$46,AD$4) -> 0 | AE13: =COUNTIF(intermediate!$O$26:$O$46,AE$4) -> 0 | AF13: =COUNTIF(intermediate!$O$26:$O$46,AF$4) -> 0 | AG13: =COUNTIF(intermediate!$O$26:$O$46,AG$4) -> 0
B14: =MAX(VLOOKUP(Report_4W!B14,tKategorien[],3),VLOOKUP(Report_4W!C14,tKategorien[[Limit diast. ]:[Kat.]],2)) ->  | C14: =MAX(VLOOKUP(Report_4W!E14,tKategorien[],3),VLOOKUP(Report_4W!F14,tKategorien[[Limit diast. ]:[Kat.]],2)) ->  | D14: =MAX(VLOOKUP(Report_4W!H14,tKategorien[],3),VLOOKUP(Report_4W!I14,tKategorien[[Limit diast. ]:[Kat.]],2)) ->  | H14: 2022-02-17 | I14: Morgen | J14: =INT(H14)+0.25 -> 44609.25 | K14: =VLOOKUP(tSequence[[#This Row],[Datum2]],tData[[Sort]:[Puls]],2,FALSE) ->  | L14: =VLOOKUP(tSequence[[#This Row],[Datum2]],tData[[Sort]:[Puls]],3,FALSE) ->  | M14: =VLOOKUP(tSequence[[#This Row],[Datum2]],tData[[Sort]:[Puls]],4,FALSE) ->  | N14: =MAX(VLOOKUP($K14,tKategorien[],3),VLOOKUP($L14,tKategorien[[Limit diast. ]:[Kat.]],2)) ->  | O14: =MAX(VLOOKUP($K15,tKategorien[],3),VLOOKUP($L15,tKategorien[[Limit diast. ]:[Kat.]],2)) ->  | P14: =MAX(VLOOKUP($K16,tKategorien[],3),VLOOKUP($L16,tKategorien[[Limit diast. ]:[Kat.]],2)) ->  | U14: Abends | AH14: =COUNTIF(intermediate!$P$26:$P$46,AH$4) -> 0 | AI14: =COUNTIF(intermediate!$P$26:$P$46,AI$4) -> 0 | AJ14: =COUNTIF(intermediate!$P$26:$P$46,AJ$4) -> 0 | AK14: =COUNTIF(intermediate!$P$26:$P$46,AK$4) -> 0 | AL14: =COUNTIF(intermediate!$P$26:$P$46,AL$4) -> 0 | AM14: =COUNTIF(intermediate!$P$26:$P$46,AM$4) -> 0
B15: =MAX(VLOOKUP(Report_4W!B15,tKategorien[],3),VLOOKUP(Report_4W!C15,tKategorien[[Limit diast. ]:[Kat.]],2)) ->  | C15: =MAX(VLOOKUP(Report_4W!E15,tKategorien[],3),VLOOKUP(Report_4W!F15,tKategorien[[Limit diast. ]:[Kat.]],2)) ->  | D15: =MAX(VLOOKUP(Report_4W!H15,tKategorien[],3),VLOOKUP(Report_4W!I15,tKategorien[[Limit diast. ]:[Kat.]],2)) ->  | H15: 2022-02-17 | I15: Mittag | J15: =INT(H15)+0.5 -> 44609.5 | K15: =VLOOKUP(tSequence[[#This Row],[Datum2]],tData[[Sort]:[Puls]],2,FALSE) ->  | L15: =VLOOKUP(tSequence[[#This Row],[Datum2]],tData[[Sort]:[Puls]],3,FALSE) ->  | M15: =VLOOKUP(tSequence[[#This Row],[Datum2]],tData[[Sort]:[Puls]],4,FALSE) -> 
B16: =MAX(VLOOKUP(Report_4W!B16,tKategorien[],3),VLOOKUP(Report_4W!C16,tKategorien[[Limit diast. ]:[Kat.]],2)) ->  | C16: =MAX(VLOOKUP(Report_4W!E16,tKategorien[],3),VLOOKUP(Report_4W!F16,tKategorien[[Limit diast. ]:[Kat.]],2)) ->  | D16: =MAX(VLOOKUP(Report_4W!H16,tKategorien[],3),VLOOKUP(Report_4W!I16,tKategorien[[Limit diast. ]:[Kat.]],2)) ->  | H16: 2022-02-17 | I16: Abend | J16: =INT(H16)+0.75 -> 44609.75 | K16: =VLOOKUP(tSequence[[#This Row],[Datum2]],tData[[Sort]:[Puls]],2,FALSE) ->  | L16: =VLOOKUP(tSequence[[#This Row],[Datum2]],tData[[Sort]:[Puls]],3,FALSE) ->  | M16: =VLOOKUP(tSequence[[#This Row],[Datum2]],tData[[Sort]:[Puls]],4,FALSE) ->  | T16: =WEEKNUM(Start_4W,21)+2&"/"&YEAR(Start_4W) -> 9/2022 | U16: Morgens | V16: =COUNTIF(intermediate!$N$47:$N$67,V$4) -> 0 | W16: =COUNTIF(intermediate!$N$47:$N$67,W$4) -> 0 | X16: =COUNTIF(intermediate!$N$47:$N$67,X$4) -> 0 | Y16: =COUNTIF(intermediate!$N$47:$N$67,Y$4) -> 0 | Z16: =COUNTIF(intermediate!$N$47:$N$67,Z$4) -> 0 | AA16: =COUNTIF(intermediate!$N$47:$N$67,AA$4) -> 0
B17: =MAX(VLOOKUP(Report_4W!B17,tKategorien[],3),VLOOKUP(Report_4W!C17,tKategorien[[Limit diast. ]:[Kat.]],2)) ->  | C17: =MAX(VLOOKUP(Report_4W!E17,tKategorien[],3),VLOOKUP(Report_4W!F17,tKategorien[[Limit diast. ]:[Kat.]],2)) ->  | D17: =MAX(VLOOKUP(Report_4W!H17,tKategorien[],3),VLOOKUP(Report_4W!I17,tKategorien[[Limit diast. ]:[Kat.]],2)) ->  | H17: 2022-02-18 | I17: Morgen | J17: =INT(H17)+0.25 -> 44610.25 | K17: =VLOOKUP(tSequence[[#This Row],[Datum2]],tData[[Sort]:[Puls]],2,FALSE) ->  | L17: =VLOOKUP(tSequence[[#This Row],[Datum2]],tData[[Sort]:[Puls]],3,FALSE) ->  | M17: =VLOOKUP(tSequence[[#This Row],[Datum2]],tData[[Sort]:[Puls]],4,FALSE) ->  | N17: =MAX(VLOOKUP($K17,tKategorien[],3),VLOOKUP($L17,tKategorien[[Limit diast. ]:[Kat.]],2)) ->  | O17: =MAX(VLOOKUP($K18,tKategorien[],3),VLOOKUP($L18,tKategorien[[Limit diast. ]:[Kat.]],2)) ->  | P17: =MAX(VLOOKUP($K19,tKategorien[],3),VLOOKUP($L19,tKategorien[[Limit diast. ]:[Kat.]],2)) ->  | U17: Mittags | AB17: =COUNTIF(intermediate!$O$47:$O$67,AB$4) -> 0 | AC17: =COUNTIF(intermediate!$O$47:$O$67,AC$4) -> 0 | AD17: =COUNTIF(intermediate!$O$47:$O$67,AD$4) -> 0 | AE17: =COUNTIF(intermediate!$O$47:$O$67,AE$4) -> 0 | AF17: =COUNTIF(intermediate!$O$47:$O$67,AF$4) -> 0 | AG17: =COUNTIF(intermediate!$O$47:$O$67,AG$4) -> 0
B18: =MAX(VLOOKUP(Report_4W!B18,tKategorien[],3),VLOOKUP(Report_4W!C18,tKategorien[[Limit diast. ]:[Kat.]],2)) ->  | C18: =MAX(VLOOKUP(Report_4W!E18,tKategorien[],3),VLOOKUP(Report_4W!F18,tKategorien[[Limit diast. ]:[Kat.]],2)) ->  | D18: =MAX(VLOOKUP(Report_4W!H18,tKategorien[],3),VLOOKUP(Report_4W!I18,tKategorien[[Limit diast. ]:[Kat.]],2)) ->  | H18: 2022-02-18 | I18: Mittag | J18: =INT(H18)+0.5 -> 44610.5 | K18: =VLOOKUP(tSequence[[#This Row],[Datum2]],tData[[Sort]:[Puls]],2,FALSE) ->  | L18: =VLOOKUP(tSequence[[#This Row],[Datum2]],tData[[Sort]:[Puls]],3,FALSE) ->  | M18: =VLOOKUP(tSequence[[#This Row],[Datum2]],tData[[Sort]:[Puls]],4,FALSE) ->  | U18: Abends | AH18: =COUNTIF(intermediate!$P$47:$P$67,AH$4) -> 0 | AI18: =COUNTIF(intermediate!$P$47:$P$67,AI$4) -> 0 | AJ18: =COUNTIF(intermediate!$P$47:$P$67,AJ$4) -> 0 | AK18: =COUNTIF(intermediate!$P$47:$P$67,AK$4) -> 0 | AL18: =COUNTIF(intermediate!$P$47:$P$67,AL$4) -> 0 | AM18: =COUNTIF(intermediate!$P$47:$P$67,AM$4) -> 0
B19: =MAX(VLOOKUP(Report_4W!B19,tKategorien[],3),VLOOKUP(Report_4W!C19,tKategorien[[Limit diast. ]:[Kat.]],2)) ->  | C19: =MAX(VLOOKUP(Report_4W!E19,tKategorien[],3),VLOOKUP(Report_4W!F19,tKategorien[[Limit diast. ]:[Kat.]],2)) ->  | D19: =MAX(VLOOKUP(Report_4W!H19,tKategorien[],3),VLOOKUP(Report_4W!I19,tKategorien[[Limit diast. ]:[Kat.]],2)) ->  | H19: 2022-02-18 | I19: Abend | J19: =INT(H19)+0.75 -> 44610.75 | K19: =VLOOKUP(tSequence[[#This Row],[Datum2]],tData[[Sort]:[Puls]],2,FALSE) ->  | L19: =VLOOKUP(tSequence[[#This Row],[Datum2]],tData[[Sort]:[Puls]],3,FALSE) ->  | M19: =VLOOKUP(tSequence[[#This Row],[Datum2]],tData[[Sort]:[Puls]],4,FALSE) -> 
B20: =MAX(VLOOKUP(Report_4W!B20,tKategorien[],3),VLOOKUP(Report_4W!C20,tKategorien[[Limit diast. ]:[Kat.]],2)) ->  | C20: =MAX(VLOOKUP(Report_4W!E20,tKategorien[],3),VLOOKUP(Report_4W!F20,tKategorien[[Limit diast. ]:[Kat.]],2)) ->  | D20: =MAX(VLOOKUP(Report_4W!H20,tKategorien[],3),VLOOKUP(Report_4W!I20,tKategorien[[Limit diast. ]:[Kat.]],2)) ->  | H20: 2022-02-19 | I20: Morgen | J20: =INT(H20)+0.25 -> 44611.25 | K20: =VLOOKUP(tSequence[[#This Row],[Datum2]],tData[[Sort]:[Puls]],2,FALSE) ->  | L20: =VLOOKUP(tSequence[[#This Row],[Datum2]],tData[[Sort]:[Puls]],3,FALSE) ->  | M20: =VLOOKUP(tSequence[[#This Row],[Datum2]],tData[[Sort]:[Puls]],4,FALSE) ->  | N20: =MAX(VLOOKUP($K20,tKategorien[],3),VLOOKUP($L20,tKategorien[[Limit diast. ]:[Kat.]],2)) ->  | O20: =MAX(VLOOKUP($K21,tKategorien[],3),VLOOKUP($L21,tKategorien[[Limit diast. ]:[Kat.]],2)) ->  | P20: =MAX(VLOOKUP($K22,tKategorien[],3),VLOOKUP($L22,tKategorien[[Limit diast. ]:[Kat.]],2)) ->  | T20: =WEEKNUM(Start_4W,21)+3&"/"&YEAR(Start_4W) -> 10/2022 | U20: Morgens | V20: =COUNTIF(intermediate!$N$68:$N$88,V$4) -> 0 | W20: =COUNTIF(intermediate!$N$68:$N$88,W$4) -> 0 | X20: =COUNTIF(intermediate!$N$68:$N$88,X$4) -> 0 | Y20: =COUNTIF(intermediate!$N$68:$N$88,Y$4) -> 0 | Z20: =COUNTIF(intermediate!$N$68:$N$88,Z$4) -> 0 | AA20: =COUNTIF(intermediate!$N$68:$N$88,AA$4) -> 0
B21: =MAX(VLOOKUP(Report_4W!B21,tKategorien[],3),VLOOKUP(Report_4W!C21,tKategorien[[Limit diast. ]:[Kat.]],2)) ->  | C21: =MAX(VLOOKUP(Report_4W!E21,tKategorien[],3),VLOOKUP(Report_4W!F21,tKategorien[[Limit diast. ]:[Kat.]],2)) ->  | D21: =MAX(VLOOKUP(Report_4W!H21,tKategorien[],3),VLOOKUP(Report_4W!I21,tKategorien[[Limit diast. ]:[Kat.]],2)) ->  | H21: 2022-02-19 | I21: Mittag | J21: =INT(H21)+0.5 -> 44611.5 | K21: =VLOOKUP(tSequence[[#This Row],[Datum2]],tData[[Sort]:[Puls]],2,FALSE) ->  | L21: =VLOOKUP(tSequence[[#This Row],[Datum2]],tData[[Sort]:[Puls]],3,FALSE) ->  | M21: =VLOOKUP(tSequence[[#This Row],[Datum2]],tData[[Sort]:[Puls]],4,FALSE) ->  | U21: Mittags | AB21: =COUNTIF(intermediate!$O$68:$O$88,AB$4) -> 0 | AC21: =COUNTIF(intermediate!$O$68:$O$88,AC$4) -> 0 | AD21: =COUNTIF(intermediate!$O$68:$O$88,AD$4) -> 0 | AE21: =COUNTIF(intermediate!$O$68:$O$88,AE$4) -> 0 | AF21: =COUNTIF(intermediate!$O$68:$O$88,AF$4) -> 0 | AG21: =COUNTIF(intermediate!$O$68:$O$88,AG$4) -> 0
B22: =MAX(VLOOKUP(Report_4W!B22,tKategorien[],3),VLOOKUP(Report_4W!C22,tKategorien[[Limit diast. ]:[Kat.]],2)) ->  | C22: =MAX(VLOOKUP(Report_4W!E22,tKategorien[],3),VLOOKUP(Report_4W!F22,tKategorien[[Limit diast. ]:[Kat.]],2)) ->  | D22: =MAX(VLOOKUP(Report_4W!H22,tKategorien[],3),VLOOKUP(Report_4W!I22,tKategorien[[Limit diast. ]:[Kat.]],2)) ->  | H22: 2022-02-19 | I22: Abend | J22: =INT(H22)+0.75 -> 44611.75 | K22: =VLOOKUP(tSequence[[#This Row],[Datum2]],tData[[Sort]:[Puls]],2,FALSE) ->  | L22: =VLOOKUP(tSequence[[#This Row],[Datum2]],tData[[Sort]:[Puls]],3,FALSE) ->  | M22: =VLOOKUP(tSequence[[#This Row],[Datum2]],tData[[Sort]:[Puls]],4,FALSE) ->  | U22: Abends | AH22: =COUNTIF(intermediate!$P$68:$P$88,AH$4) -> 0 | AI22: =COUNTIF(intermediate!$P$68:$P$88,AI$4) -> 0 | AJ22: =COUNTIF(intermediate!$P$68:$P$88,AJ$4) -> 0 | AK22: =COUNTIF(intermediate!$P$68:$P$88,AK$4) -> 0 | AL22: =COUNTIF(intermediate!$P$68:$P$88,AL$4) -> 0 | AM22: =COUNTIF(intermediate!$P$68:$P$88,AM$4) -> 0
B23: =MAX(VLOOKUP(Report_4W!B23,tKategorien[],3),VLOOKUP(Report_4W!C23,tKategorien[[Limit diast. ]:[Kat.]],2)) ->  | C23: =MAX(VLOOKUP(Report_4W!E23,tKategorien[],3),VLOOKUP(Report_4W!F23,tKategorien[[Limit diast. ]:[Kat.]],2)) ->  | D23: =MAX(VLOOKUP(Report_4W!H23,tKategorien[],3),VLOOKUP(Report_4W!I23,tKategorien[[Limit diast. ]:[Kat.]],2)) ->  | H23: 2022-02-20 | I23: Morgen | J23: =INT(H23)+0.25 -> 44612.25 | K23: =VLOOKUP(tSequence[[#This Row],[Datum2]],tData[[Sort]:[Puls]],2,FALSE) ->  | L23: =VLOOKUP(tSequence[[#This Row],[Datum2]],tData[[Sort]:[Puls]],3,FALSE) ->  | M23: =VLOOKUP(tSequence[[#This Row],[Datum2]],tData[[Sort]:[Puls]],4,FALSE) ->  | N23: =MAX(VLOOKUP($K23,tKategorien[],3),VLOOKUP($L23,tKategorien[[Limit diast. ]:[Kat.]],2)) ->  | O23: =MAX(VLOOKUP($K24,tKategorien[],3),VLOOKUP($L24,tKategorien[[Limit diast. ]:[Kat.]],2)) ->  | P23: =MAX(VLOOKUP($K25,tKategorien[],3),VLOOKUP($L25,tKategorien[[Limit diast. ]:[Kat.]],2)) -> 
B24: =MAX(VLOOKUP(Report_4W!B24,tKategorien[],3),VLOOKUP(Report_4W!C24,tKategorien[[Limit diast. ]:[Kat.]],2)) ->  | C24: =MAX(VLOOKUP(Report_4W!E24,tKategorien[],3),VLOOKUP(Report_4W!F24,tKategorien[[Limit diast. ]:[Kat.]],2)) ->  | D24: =MAX(VLOOKUP(Report_4W!H24,tKategorien[],3),VLOOKUP(Report_4W!I24,tKategorien[[Limit diast. ]:[Kat.]],2)) ->  | H24: 2022-02-20 | I24: Mittag | J24: =INT(H24)+0.5 -> 44612.5 | K24: =VLOOKUP(tSequence[[#This Row],[Datum2]],tData[[Sort]:[Puls]],2,FALSE) ->  | L24: =VLOOKUP(tSequence[[#This Row],[Datum2]],tData[[Sort]:[Puls]],3,FALSE) ->  | M24: =VLOOKUP(tSequence[[#This Row],[Datum2]],tData[[Sort]:[Puls]],4,FALSE) -> 
B25: =MAX(VLOOKUP(Report_4W!B25,tKategorien[],3),VLOOKUP(Report_4W!C25,tKategorien[[Limit diast. ]:[Kat.]],2)) ->  | C25: =MAX(VLOOKUP(Report_4W!E25,tKategorien[],3),VLOOKUP(Report_4W!F25,tKategorien[[Limit diast. ]:[Kat.]],2)) ->  | D25: =MAX(VLOOKUP(Report_4W!H25,tKategorien[],3),VLOOKUP(Report_4W!I25,tKategorien[[Limit diast. ]:[Kat.]],2)) ->  | H25: 2022-02-20 | I25: Abend | J25: =INT(H25)+0.75 -> 44612.75 | K25: =VLOOKUP(tSequence[[#This Row],[Datum2]],tData[[Sort]:[Puls]],2,FALSE) ->  | L25: =VLOOKUP(tSequence[[#This Row],[Datum2]],tData[[Sort]:[Puls]],3,FALSE) ->  | M25: =VLOOKUP(tSequence[[#This Row],[Datum2]],tData[[Sort]:[Puls]],4,FALSE) -> 
B26: =MAX(VLOOKUP(Report_4W!B26,tKategorien[],3),VLOOKUP(Report_4W!C26,tKategorien[[Limit diast. ]:[Kat.]],2)) ->  | C26: =MAX(VLOOKUP(Report_4W!E26,tKategorien[],3),VLOOKUP(Report_4W!F26,tKategorien[[Limit diast. ]:[Kat.]],2)) ->  | D26: =MAX(VLOOKUP(Report_4W!H26,tKategorien[],3),VLOOKUP(Report_4W!I26,tKategorien[[Limit diast. ]:[Kat.]],2)) ->  | H26: 2022-02-21 | I26: Morgen | J26: =INT(H26)+0.25 -> 44613.25 | K26: =VLOOKUP(tSequence[[#This Row],[Datum2]],tData[[Sort]:[Puls]],2,FALSE) ->  | L26: =VLOOKUP(tSequence[[#This Row],[Datum2]],tData[[Sort]:[Puls]],3,FALSE) ->  | M26: =VLOOKUP(tSequence[[#This Row],[Datum2]],tData[[Sort]:[Puls]],4,FALSE) ->  | N26: =MAX(VLOOKUP($K26,tKategorien[],3),VLOOKUP($L26,tKategorien[[Limit diast. ]:[Kat.]],2)) ->  | O26: =MAX(VLOOKUP($K27,tKategorien[],3),VLOOKUP($L27,tKategorien[[Limit diast. ]:[Kat.]],2)) ->  | P26: =MAX(VLOOKUP($K28,tKategorien[],3),VLOOKUP($L28,tKategorien[[Limit diast. ]:[Kat.]],2)) -> 
B27: =MAX(VLOOKUP(Report_4W!B27,tKategorien[],3),VLOOKUP(Report_4W!C27,tKategorien[[Limit diast. ]:[Kat.]],2)) ->  | C27: =MAX(VLOOKUP(Report_4W!E27,tKategorien[],3),VLOOKUP(Report_4W!F27,tKategorien[[Limit diast. ]:[Kat.]],2)) ->  | D27: =MAX(VLOOKUP(Report_4W!H27,tKategorien[],3),VLOOKUP(Report_4W!I27,tKategorien[[Limit diast. ]:[Kat.]],2)) ->  | H27: 2022-02-21 | I27: Mittag | J27: =INT(H27)+0.5 -> 44613.5 | K27: =VLOOKUP(tSequence[[#This Row],[Datum2]],tData[[Sort]:[Puls]],2,FALSE) ->  | L27: =VLOOKUP(tSequence[[#This Row],[Datum2]],tData[[Sort]:[Puls]],3,FALSE) ->  | M27: =VLOOKUP(tSequence[[#This Row],[Datum2]],tData[[Sort]:[Puls]],4,FALSE) -> 
B28: =MAX(VLOOKUP(Report_4W!B28,tKategorien[],3),VLOOKUP(Report_4W!C28,tKategorien[[Limit diast. ]:[Kat.]],2)) ->  | C28: =MAX(VLOOKUP(Report_4W!E28,tKategorien[],3),VLOOKUP(Report_4W!F28,tKategorien[[Limit diast. ]:[Kat.]],2)) ->  | D28: =MAX(VLOOKUP(Report_4W!H28,tKategorien[],3),VLOOKUP(Report_4W!I28,tKategorien[[Limit diast. ]:[Kat.]],2)) ->  | H28: 2022-02-21 | I28: Abend | J28: =INT(H28)+0.75 -> 44613.75 | K28: =VLOOKUP(tSequence[[#This Row],[Datum2]],tData[[Sort]:[Puls]],2,FALSE) ->  | L28: =VLOOKUP(tSequence[[#This Row],[Datum2]],tData[[Sort]:[Puls]],3,FALSE) ->  | M28: =VLOOKUP(tSequence[[#This Row],[Datum2]],tData[[Sort]:[Puls]],4,FALSE) -> 
B29: =MAX(VLOOKUP(Report_4W!B29,tKategorien[],3),VLOOKUP(Report_4W!C29,tKategorien[[Limit diast. ]:[Kat.]],2)) ->  | C29: =MAX(VLOOKUP(Report_4W!E29,tKategorien[],3),VLOOKUP(Report_4W!F29,tKategorien[[Limit diast. ]:[Kat.]],2)) ->  | D29: =MAX(VLOOKUP(Report_4W!H29,tKategorien[],3),VLOOKUP(Report_4W!I29,tKategorien[[Limit diast. ]:[Kat.]],2)) ->  | H29: 2022-02-22 | I29: Morgen | J29: =INT(H29)+0.25 -> 44614.25 | K29: =VLOOKUP(tSequence[[#This Row],[Datum2]],tData[[Sort]:[Puls]],2,FALSE) ->  | L29: =VLOOKUP(tSequence[[#This Row],[Datum2]],tData[[Sort]:[Puls]],3,FALSE) ->  | M29: =VLOOKUP(tSequence[[#This Row],[Datum2]],tData[[Sort]:[Puls]],4,FALSE) ->  | N29: =MAX(VLOOKUP($K29,tKategorien[],3),VLOOKUP($L29,tKategorien[[Limit diast. ]:[Kat.]],2)) ->  | O29: =MAX(VLOOKUP($K30,tKategorien[],3),VLOOKUP($L30,tKategorien[[Limit diast. ]:[Kat.]],2)) ->  | P29: =MAX(VLOOKUP($K31,tKategorien[],3),VLOOKUP($L31,tKategorien[[Limit diast. ]:[Kat.]],2)) -> 
B30: =MAX(VLOOKUP(Report_4W!B30,tKategorien[],3),VLOOKUP(Report_4W!C30,tKategorien[[Limit diast. ]:[Kat.]],2)) ->  | C30: =MAX(VLOOKUP(Report_4W!E30,tKategorien[],3),VLOOKUP(Report_4W!F30,tKategorien[[Limit diast. ]:[Kat.]],2)) ->  | D30: =MAX(VLOOKUP(Report_4W!H30,tKategorien[],3),VLOOKUP(Report_4W!I30,tKategorien[[Limit diast. ]:[Kat.]],2)) ->  | H30: 2022-02-22 | I30: Mittag | J30: =INT(H30)+0.5 -> 44614.5 | K30: =VLOOKUP(tSequence[[#This Row],[Datum2]],tData[[Sort]:[Puls]],2,FALSE) ->  | L30: =VLOOKUP(tSequence[[#This Row],[Datum2]],tData[[Sort]:[Puls]],3,FALSE) ->  | M30: =VLOOKUP(tSequence[[#This Row],[Datum2]],tData[[Sort]:[Puls]],4,FALSE) -> 
B31: =MAX(VLOOKUP(Report_4W!B31,tKategorien[],3),VLOOKUP(Report_4W!C31,tKategorien[[Limit diast. ]:[Kat.]],2)) ->  | C31: =MAX(VLOOKUP(Report_4W!E31,tKategorien[],3),VLOOKUP(Report_4W!F31,tKategorien[[Limit diast. ]:[Kat.]],2)) ->  | D31: =MAX(VLOOKUP(Report_4W!H31,tKategorien[],3),VLOOKUP(Report_4W!I31,tKategorien[[Limit diast. ]:[Kat.]],2)) ->  | H31: 2022-02-22 | I31: Abend | J31: =INT(H31)+0.75 -> 44614.75 | K31: =VLOOKUP(tSequence[[#This Row],[Datum2]],tData[[Sort]:[Puls]],2,FALSE) ->  | L31: =VLOOKUP(tSequence[[#This Row],[Datum2]],tData[[Sort]:[Puls]],3,FALSE) ->  | M31: =VLOOKUP(tSequence[[#This Row],[Datum2]],tData[[Sort]:[Puls]],4,FALSE) -> 
B32: =MAX(VLOOKUP(Report_4W!#REF!,tKategorien[],3),VLOOKUP(Report_4W!#REF!,tKategorien[[Limit diast. ]:[Kat.]],2)) ->  | C32: =MAX(VLOOKUP(Report_4W!#REF!,tKategorien[],3),VLOOKUP(Report_4W!#REF!,tKategorien[[Limit diast. ]:[Kat.]],2)) ->  | D32: =MAX(VLOOKUP(Report_4W!#REF!,tKategorien[],3),VLOOKUP(Report_4W!#REF!,tKategorien[[Limit diast. ]:[Kat.]],2)) ->  | H32: 2022-02-23 | I32: Morgen | J32: =INT(H32)+0.25 -> 44615.25 | K32: =VLOOKUP(tSequence[[#This Row],[Datum2]],tData[[Sort]:[Puls]],2,FALSE) ->  | L32: =VLOOKUP(tSequence[[#This Row],[Datum2]],tData[[Sort]:[Puls]],3,FALSE) ->  | M32: =VLOOKUP(tSequence[[#This Row],[Datum2]],tData[[Sort]:[Puls]],4,FALSE) ->  | N32: =MAX(VLOOKUP($K32,tKategorien[],3),VLOOKUP($L32,tKategorien[[Limit diast. ]:[Kat.]],2)) ->  | O32: =MAX(VLOOKUP($K33,tKategorien[],3),VLOOKUP($L33,tKategorien[[Limit diast. ]:[Kat.]],2)) ->  | P32: =MAX(VLOOKUP($K34,tKategorien[],3),VLOOKUP($L34,tKategorien[[Limit diast. ]:[Kat.]],2)) -> 
B33: =MAX(VLOOKUP(Report_4W!#REF!,tKategorien[],3),VLOOKUP(Report_4W!#REF!,tKategorien[[Limit diast. ]:[Kat.]],2)) ->  | C33: =MAX(VLOOKUP(Report_4W!#REF!,tKategorien[],3),VLOOKUP(Report_4W!#REF!,tKategorien[[Limit diast. ]:[Kat.]],2)) ->  | D33: =MAX(VLOOKUP(Report_4W!#REF!,tKategorien[],3),VLOOKUP(Report_4W!#REF!,tKategorien[[Limit diast. ]:[Kat.]],2)) ->  | H33: 2022-02-23 | I33: Mittag | J33: =INT(H33)+0.5 -> 44615.5 | K33: =VLOOKUP(tSequence[[#This Row],[Datum2]],tData[[Sort]:[Puls]],2,FALSE) ->  | L33: =VLOOKUP(tSequence[[#This Row],[Datum2]],tData[[Sort]:[Puls]],3,FALSE) ->  | M33: =VLOOKUP(tSequence[[#This Row],[Datum2]],tData[[Sort]:[Puls]],4,FALSE) -> 
B34: =MAX(VLOOKUP(Report_4W!#REF!,tKategorien[],3),VLOOKUP(Report_4W!#REF!,tKategorien[[Limit diast. ]:[Kat.]],2)) ->  | C34: =MAX(VLOOKUP(Report_4W!#REF!,tKategorien[],3),VLOOKUP(Report_4W!#REF!,tKategorien[[Limit diast. ]:[Kat.]],2)) ->  | D34: =MAX(VLOOKUP(Report_4W!#REF!,tKategorien[],3),VLOOKUP(Report_4W!#REF!,tKategorien[[Limit diast. ]:[Kat.]],2)) ->  | H34: 2022-02-23 | I34: Abend | J34: =INT(H34)+0.75 -> 44615.75 | K34: =VLOOKUP(tSequence[[#This Row],[Datum2]],tData[[Sort]:[Puls]],2,FALSE) ->  | L34: =VLOOKUP(tSequence[[#This Row],[Datum2]],tData[[Sort]:[Puls]],3,FALSE) ->  | M34: =VLOOKUP(tSequence[[#This Row],[Datum2]],tData[[Sort]:[Puls]],4,FALSE) -> 
B35: =MAX(VLOOKUP(Report_4W!B32,tKategorien[],3),VLOOKUP(Report_4W!C32,tKategorien[[Limit diast. ]:[Kat.]],2)) ->  | C35: =MAX(VLOOKUP(Report_4W!E32,tKategorien[],3),VLOOKUP(Report_4W!F32,tKategorien[[Limit diast. ]:[Kat.]],2)) ->  | D35: =MAX(VLOOKUP(Report_4W!H32,tKategorien[],3),VLOOKUP(Report_4W!I32,tKategorien[[Limit diast. ]:[Kat.]],2)) ->  | H35: 2022-02-24 | I35: Morgen | J35: =INT(H35)+0.25 -> 44616.25 | K35: =VLOOKUP(tSequence[[#This Row],[Datum2]],tData[[Sort]:[Puls]],2,FALSE) ->  | L35: =VLOOKUP(tSequence[[#This Row],[Datum2]],tData[[Sort]:[Puls]],3,FALSE) ->  | M35: =VLOOKUP(tSequence[[#This Row],[Datum2]],tData[[Sort]:[Puls]],4,FALSE) ->  | N35: =MAX(VLOOKUP($K35,tKategorien[],3),VLOOKUP($L35,tKategorien[[Limit diast. ]:[Kat.]],2)) ->  | O35: =MAX(VLOOKUP($K36,tKategorien[],3),VLOOKUP($L36,tKategorien[[Limit diast. ]:[Kat.]],2)) ->  | P35: =MAX(VLOOKUP($K37,tKategorien[],3),VLOOKUP($L37,tKategorien[[Limit diast. ]:[Kat.]],2)) -> 
H36: 2022-02-24 | I36: Mittag | J36: =INT(H36)+0.5 -> 44616.5 | K36: =VLOOKUP(tSequence[[#This Row],[Datum2]],tData[[Sort]:[Puls]],2,FALSE) ->  | L36: =VLOOKUP(tSequence[[#This Row],[Datum2]],tData[[Sort]:[Puls]],3,FALSE) ->  | M36: =VLOOKUP(tSequence[[#This Row],[Datum2]],tData[[Sort]:[Puls]],4,FALSE) -> 
H37: 2022-02-24 | I37: Abend | J37: =INT(H37)+0.75 -> 44616.75 | K37: =VLOOKUP(tSequence[[#This Row],[Datum2]],tData[[Sort]:[Puls]],2,FALSE) ->  | L37: =VLOOKUP(tSequence[[#This Row],[Datum2]],tData[[Sort]:[Puls]],3,FALSE) ->  | M37: =VLOOKUP(tSequence[[#This Row],[Datum2]],tData[[Sort]:[Puls]],4,FALSE) -> 
H38: =INT($H$5+(ROW()-5)/3) -> 2022-02-25 | I38: Morgen | J38: =INT(H38)+0.25 -> 44617.25 | K38: =VLOOKUP(tSequence[[#This Row],[Datum2]],tData[[Sort]:[Puls]],2,FALSE) ->  | L38: =VLOOKUP(tSequence[[#This Row],[Datum2]],tData[[Sort]:[Puls]],3,FALSE) ->  | M38: =VLOOKUP(tSequence[[#This Row],[Datum2]],tData[[Sort]:[Puls]],4,FALSE) ->  | N38: =MAX(VLOOKUP($K38,tKategorien[],3),VLOOKUP($L38,tKategorien[[Limit diast. ]:[Kat.]],2)) ->  | O38: =MAX(VLOOKUP($K39,tKategorien[],3),VLOOKUP($L39,tKategorien[[Limit diast. ]:[Kat.]],2)) ->  | P38: =MAX(VLOOKUP($K40,tKategorien[],3),VLOOKUP($L40,tKategorien[[Limit diast. ]:[Kat.]],2)) -> 
H39: 2022-02-25 | I39: Mittag | J39: =INT(H39)+0.5 -> 44617.5 | K39: =VLOOKUP(tSequence[[#This Row],[Datum2]],tData[[Sort]:[Puls]],2,FALSE) ->  | L39: =VLOOKUP(tSequence[[#This Row],[Datum2]],tData[[Sort]:[Puls]],3,FALSE) ->  | M39: =VLOOKUP(tSequence[[#This Row],[Datum2]],tData[[Sort]:[Puls]],4,FALSE) -> 
H40: 2022-02-25 | I40: Abend | J40: =INT(H40)+0.75 -> 44617.75 | K40: =VLOOKUP(tSequence[[#This Row],[Datum2]],tData[[Sort]:[Puls]],2,FALSE) ->  | L40: =VLOOKUP(tSequence[[#This Row],[Datum2]],tData[[Sort]:[Puls]],3,FALSE) ->  | M40: =VLOOKUP(tSequence[[#This Row],[Datum2]],tData[[Sort]:[Puls]],4,FALSE) -> 
H41: 2022-02-26 | I41: Morgen | J41: =INT(H41)+0.25 -> 44618.25 | K41: =VLOOKUP(tSequence[[#This Row],[Datum2]],tData[[Sort]:[Puls]],2,FALSE) ->  | L41: =VLOOKUP(tSequence[[#This Row],[Datum2]],tData[[Sort]:[Puls]],3,FALSE) ->  | M41: =VLOOKUP(tSequence[[#This Row],[Datum2]],tData[[Sort]:[Puls]],4,FALSE) ->  | N41: =MAX(VLOOKUP($K41,tKategorien[],3),VLOOKUP($L41,tKategorien[[Limit diast. ]:[Kat.]],2)) ->  | O41: =MAX(VLOOKUP($K42,tKategorien[],3),VLOOKUP($L42,tKategorien[[Limit diast. ]:[Kat.]],2)) ->  | P41: =MAX(VLOOKUP($K43,tKategorien[],3),VLOOKUP($L43,tKategorien[[Limit diast. ]:[Kat.]],2)) -> 
H42: 2022-02-26 | I42: Mittag | J42: =INT(H42)+0.5 -> 44618.5 | K42: =VLOOKUP(tSequence[[#This Row],[Datum2]],tData[[Sort]:[Puls]],2,FALSE) ->  | L42: =VLOOKUP(tSequence[[#This Row],[Datum2]],tData[[Sort]:[Puls]],3,FALSE) ->  | M42: =VLOOKUP(tSequence[[#This Row],[Datum2]],tData[[Sort]:[Puls]],4,FALSE) -> 
H43: 2022-02-26 | I43: Abend | J43: =INT(H43)+0.75 -> 44618.75 | K43: =VLOOKUP(tSequence[[#This Row],[Datum2]],tData[[Sort]:[Puls]],2,FALSE) ->  | L43: =VLOOKUP(tSequence[[#This Row],[Datum2]],tData[[Sort]:[Puls]],3,FALSE) ->  | M43: =VLOOKUP(tSequence[[#This Row],[Datum2]],tData[[Sort]:[Puls]],4,FALSE) -> 
H44: 2022-02-27 | I44: Morgen | J44: =INT(H44)+0.25 -> 44619.25 | K44: =VLOOKUP(tSequence[[#This Row],[Datum2]],tData[[Sort]:[Puls]],2,FALSE) ->  | L44: =VLOOKUP(tSequence[[#This Row],[Datum2]],tData[[Sort]:[Puls]],3,FALSE) ->  | M44: =VLOOKUP(tSequence[[#This Row],[Datum2]],tData[[Sort]:[Puls]],4,FALSE) ->  | N44: =MAX(VLOOKUP($K44,tKategorien[],3),VLOOKUP($L44,tKategorien[[Limit diast. ]:[Kat.]],2)) ->  | O44: =MAX(VLOOKUP($K45,tKategorien[],3),VLOOKUP($L45,tKategorien[[Limit diast. ]:[Kat.]],2)) ->  | P44: =MAX(VLOOKUP($K46,tKategorien[],3),VLOOKUP($L46,tKategorien[[Limit diast. ]:[Kat.]],2)) -> 
H45: 2022-02-27 | I45: Mittag | J45: =INT(H45)+0.5 -> 44619.5 | K45: =VLOOKUP(tSequence[[#This Row],[Datum2]],tData[[Sort]:[Puls]],2,FALSE) ->  | L45: =VLOOKUP(tSequence[[#This Row],[Datum2]],tData[[Sort]:[Puls]],3,FALSE) ->  | M45: =VLOOKUP(tSequence[[#This Row],[Datum2]],tData[[Sort]:[Puls]],4,FALSE) -> 
H46: 2022-02-27 | I46: Abend | J46: =INT(H46)+0.75 -> 44619.75 | K46: =VLOOKUP(tSequence[[#This Row],[Datum2]],tData[[Sort]:[Puls]],2,FALSE) ->  | L46: =VLOOKUP(tSequence[[#This Row],[Datum2]],tData[[Sort]:[Puls]],3,FALSE) ->  | M46: =VLOOKUP(tSequence[[#This Row],[Datum2]],tData[[Sort]:[Puls]],4,FALSE) -> 
H47: 2022-02-28 | I47: Morgen | J47: =INT(H47)+0.25 -> 44620.25 | K47: =VLOOKUP(tSequence[[#This Row],[Datum2]],tData[[Sort]:[Puls]],2,FALSE) ->  | L47: =VLOOKUP(tSequence[[#This Row],[Datum2]],tData[[Sort]:[Puls]],3,FALSE) ->  | M47: =VLOOKUP(tSequence[[#This Row],[Datum2]],tData[[Sort]:[Puls]],4,FALSE) ->  | N47: =MAX(VLOOKUP($K47,tKategorien[],3),VLOOKUP($L47,tKategorien[[Limit diast. ]:[Kat.]],2)) ->  | O47: =MAX(VLOOKUP($K48,tKategorien[],3),VLOOKUP($L48,tKategorien[[Limit diast. ]:[Kat.]],2)) ->  | P47: =MAX(VLOOKUP($K49,tKategorien[],3),VLOOKUP($L49,tKategorien[[Limit diast. ]:[Kat.]],2)) -> 
H48: 2022-02-28 | I48: Mittag | J48: =INT(H48)+0.5 -> 44620.5 | K48: =VLOOKUP(tSequence[[#This Row],[Datum2]],tData[[Sort]:[Puls]],2,FALSE) ->  | L48: =VLOOKUP(tSequence[[#This Row],[Datum2]],tData[[Sort]:[Puls]],3,FALSE) ->  | M48: =VLOOKUP(tSequence[[#This Row],[Datum2]],tData[[Sort]:[Puls]],4,FALSE) -> 
H49: 2022-02-28 | I49: Abend | J49: =INT(H49)+0.75 -> 44620.75 | K49: =VLOOKUP(tSequence[[#This Row],[Datum2]],tData[[Sort]:[Puls]],2,FALSE) ->  | L49: =VLOOKUP(tSequence[[#This Row],[Datum2]],tData[[Sort]:[Puls]],3,FALSE) ->  | M49: =VLOOKUP(tSequence[[#This Row],[Datum2]],tData[[Sort]:[Puls]],4,FALSE) -> 
H50: 2022-03-01 | I50: Morgen | J50: =INT(H50)+0.25 -> 44621.25 | K50: =VLOOKUP(tSequence[[#This Row],[Datum2]],tData[[Sort]:[Puls]],2,FALSE) ->  | L50: =VLOOKUP(tSequence[[#This Row],[Datum2]],tData[[Sort]:[Puls]],3,FALSE) ->  | M50: =VLOOKUP(tSequence[[#This Row],[Datum2]],tData[[Sort]:[Puls]],4,FALSE) ->  | N50: =MAX(VLOOKUP($K50,tKategorien[],3),VLOOKUP($L50,tKategorien[[Limit diast. ]:[Kat.]],2)) ->  | O50: =MAX(VLOOKUP($K51,tKategorien[],3),VLOOKUP($L51,tKategorien[[Limit diast. ]:[Kat.]],2)) ->  | P50: =MAX(VLOOKUP($K52,tKategorien[],3),VLOOKUP($L52,tKategorien[[Limit diast. ]:[Kat.]],2)) -> 
H51: 2022-03-01 | I51: Mittag | J51: =INT(H51)+0.5 -> 44621.5 | K51: =VLOOKUP(tSequence[[#This Row],[Datum2]],tData[[Sort]:[Puls]],2,FALSE) ->  | L51: =VLOOKUP(tSequence[[#This Row],[Datum2]],tData[[Sort]:[Puls]],3,FALSE) ->  | M51: =VLOOKUP(tSequence[[#This Row],[Datum2]],tData[[Sort]:[Puls]],4,FALSE) -> 
H52: 2022-03-01 | I52: Abend | J52: =INT(H52)+0.75 -> 44621.75 | K52: =VLOOKUP(tSequence[[#This Row],[Datum2]],tData[[Sort]:[Puls]],2,FALSE) ->  | L52: =VLOOKUP(tSequence[[#This Row],[Datum2]],tData[[Sort]:[Puls]],3,FALSE) ->  | M52: =VLOOKUP(tSequence[[#This Row],[Datum2]],tData[[Sort]:[Puls]],4,FALSE) -> 
H53: 2022-03-02 | I53: Morgen | J53: =INT(H53)+0.25 -> 44622.25 | K53: =VLOOKUP(tSequence[[#This Row],[Datum2]],tData[[Sort]:[Puls]],2,FALSE) ->  | L53: =VLOOKUP(tSequence[[#This Row],[Datum2]],tData[[Sort]:[Puls]],3,FALSE) ->  | M53: =VLOOKUP(tSequence[[#This Row],[Datum2]],tData[[Sort]:[Puls]],4,FALSE) ->  | N53: =MAX(VLOOKUP($K53,tKategorien[],3),VLOOKUP($L53,tKategorien[[Limit diast. ]:[Kat.]],2)) ->  | O53: =MAX(VLOOKUP($K54,tKategorien[],3),VLOOKUP($L54,tKategorien[[Limit diast. ]:[Kat.]],2)) ->  | P53: =MAX(VLOOKUP($K55,tKategorien[],3),VLOOKUP($L55,tKategorien[[Limit diast. ]:[Kat.]],2)) -> 
H54: 2022-03-02 | I54: Mittag | J54: =INT(H54)+0.5 -> 44622.5 | K54: =VLOOKUP(tSequence[[#This Row],[Datum2]],tData[[Sort]:[Puls]],2,FALSE) ->  | L54: =VLOOKUP(tSequence[[#This Row],[Datum2]],tData[[Sort]:[Puls]],3,FALSE) ->  | M54: =VLOOKUP(tSequence[[#This Row],[Datum2]],tData[[Sort]:[Puls]],4,FALSE) -> 
H55: 2022-03-02 | I55: Abend | J55: =INT(H55)+0.75 -> 44622.75 | K55: =VLOOKUP(tSequence[[#This Row],[Datum2]],tData[[Sort]:[Puls]],2,FALSE) ->  | L55: =VLOOKUP(tSequence[[#This Row],[Datum2]],tData[[Sort]:[Puls]],3,FALSE) ->  | M55: =VLOOKUP(tSequence[[#This Row],[Datum2]],tData[[Sort]:[Puls]],4,FALSE) -> 
H56: 2022-03-03 | I56: Morgen | J56: =INT(H56)+0.25 -> 44623.25 | K56: =VLOOKUP(tSequence[[#This Row],[Datum2]],tData[[Sort]:[Puls]],2,FALSE) ->  | L56: =VLOOKUP(tSequence[[#This Row],[Datum2]],tData[[Sort]:[Puls]],3,FALSE) ->  | M56: =VLOOKUP(tSequence[[#This Row],[Datum2]],tData[[Sort]:[Puls]],4,FALSE) ->  | N56: =MAX(VLOOKUP($K56,tKategorien[],3),VLOOKUP($L56,tKategorien[[Limit diast. ]:[Kat.]],2)) ->  | O56: =MAX(VLOOKUP($K57,tKategorien[],3),VLOOKUP($L57,tKategorien[[Limit diast. ]:[Kat.]],2)) ->  | P56: =MAX(VLOOKUP($K58,tKategorien[],3),VLOOKUP($L58,tKategorien[[Limit diast. ]:[Kat.]],2)) -> 
H57: 2022-03-03 | I57: Mittag | J57: =INT(H57)+0.5 -> 44623.5 | K57: =VLOOKUP(tSequence[[#This Row],[Datum2]],tData[[Sort]:[Puls]],2,FALSE) ->  | L57: =VLOOKUP(tSequence[[#This Row],[Datum2]],tData[[Sort]:[Puls]],3,FALSE) ->  | M57: =VLOOKUP(tSequence[[#This Row],[Datum2]],tData[[Sort]:[Puls]],4,FALSE) -> 
H58: 2022-03-03 | I58: Abend | J58: =INT(H58)+0.75 -> 44623.75 | K58: =VLOOKUP(tSequence[[#This Row],[Datum2]],tData[[Sort]:[Puls]],2,FALSE) ->  | L58: =VLOOKUP(tSequence[[#This Row],[Datum2]],tData[[Sort]:[Puls]],3,FALSE) ->  | M58: =VLOOKUP(tSequence[[#This Row],[Datum2]],tData[[Sort]:[Puls]],4,FALSE) -> 
H59: 2022-03-04 | I59: Morgen | J59: =INT(H59)+0.25 -> 44624.25 | K59: =VLOOKUP(tSequence[[#This Row],[Datum2]],tData[[Sort]:[Puls]],2,FALSE) ->  | L59: =VLOOKUP(tSequence[[#This Row],[Datum2]],tData[[Sort]:[Puls]],3,FALSE) ->  | M59: =VLOOKUP(tSequence[[#This Row],[Datum2]],tData[[Sort]:[Puls]],4,FALSE) ->  | N59: =MAX(VLOOKUP($K59,tKategorien[],3),VLOOKUP($L59,tKategorien[[Limit diast. ]:[Kat.]],2)) ->  | O59: =MAX(VLOOKUP($K60,tKategorien[],3),VLOOKUP($L60,tKategorien[[Limit diast. ]:[Kat.]],2)) ->  | P59: =MAX(VLOOKUP($K61,tKategorien[],3),VLOOKUP($L61,tKategorien[[Limit diast. ]:[Kat.]],2)) -> 
H60: 2022-03-04 | I60: Mittag | J60: =INT(H60)+0.5 -> 44624.5 | K60: =VLOOKUP(tSequence[[#This Row],[Datum2]],tData[[Sort]:[Puls]],2,FALSE) ->  | L60: =VLOOKUP(tSequence[[#This Row],[Datum2]],tData[[Sort]:[Puls]],3,FALSE) ->  | M60: =VLOOKUP(tSequence[[#This Row],[Datum2]],tData[[Sort]:[Puls]],4,FALSE) -> 
H61: 2022-03-04 | I61: Abend | J61: =INT(H61)+0.75 -> 44624.75 | K61: =VLOOKUP(tSequence[[#This Row],[Datum2]],tData[[Sort]:[Puls]],2,FALSE) ->  | L61: =VLOOKUP(tSequence[[#This Row],[Datum2]],tData[[Sort]:[Puls]],3,FALSE) ->  | M61: =VLOOKUP(tSequence[[#This Row],[Datum2]],tData[[Sort]:[Puls]],4,FALSE) -> 
H62: 2022-03-05 | I62: Morgen | J62: =INT(H62)+0.25 -> 44625.25 | K62: =VLOOKUP(tSequence[[#This Row],[Datum2]],tData[[Sort]:[Puls]],2,FALSE) ->  | L62: =VLOOKUP(tSequence[[#This Row],[Datum2]],tData[[Sort]:[Puls]],3,FALSE) ->  | M62: =VLOOKUP(tSequence[[#This Row],[Datum2]],tData[[Sort]:[Puls]],4,FALSE) ->  | N62: =MAX(VLOOKUP($K62,tKategorien[],3),VLOOKUP($L62,tKategorien[[Limit diast. ]:[Kat.]],2)) ->  | O62: =MAX(VLOOKUP($K63,tKategorien[],3),VLOOKUP($L63,tKategorien[[Limit diast. ]:[Kat.]],2)) ->  | P62: =MAX(VLOOKUP($K64,tKategorien[],3),VLOOKUP($L64,tKategorien[[Limit diast. ]:[Kat.]],2)) -> 
H63: 2022-03-05 | I63: Mittag | J63: =INT(H63)+0.5 -> 44625.5 | K63: =VLOOKUP(tSequence[[#This Row],[Datum2]],tData[[Sort]:[Puls]],2,FALSE) ->  | L63: =VLOOKUP(tSequence[[#This Row],[Datum2]],tData[[Sort]:[Puls]],3,FALSE) ->  | M63: =VLOOKUP(tSequence[[#This Row],[Datum2]],tData[[Sort]:[Puls]],4,FALSE) -> 
H64: 2022-03-05 | I64: Abend | J64: =INT(H64)+0.75 -> 44625.75 | K64: =VLOOKUP(tSequence[[#This Row],[Datum2]],tData[[Sort]:[Puls]],2,FALSE) ->  | L64: =VLOOKUP(tSequence[[#This Row],[Datum2]],tData[[Sort]:[Puls]],3,FALSE) ->  | M64: =VLOOKUP(tSequence[[#This Row],[Datum2]],tData[[Sort]:[Puls]],4,FALSE) -> 
H65: 2022-03-06 | I65: Morgen | J65: =INT(H65)+0.25 -> 44626.25 | K65: =VLOOKUP(tSequence[[#This Row],[Datum2]],tData[[Sort]:[Puls]],2,FALSE) ->  | L65: =VLOOKUP(tSequence[[#This Row],[Datum2]],tData[[Sort]:[Puls]],3,FALSE) ->  | M65: =VLOOKUP(tSequence[[#This Row],[Datum2]],tData[[Sort]:[Puls]],4,FALSE) ->  | N65: =MAX(VLOOKUP($K65,tKategorien[],3),VLOOKUP($L65,tKategorien[[Limit diast. ]:[Kat.]],2)) ->  | O65: =MAX(VLOOKUP($K66,tKategorien[],3),VLOOKUP($L66,tKategorien[[Limit diast. ]:[Kat.]],2)) ->  | P65: =MAX(VLOOKUP($K67,tKategorien[],3),VLOOKUP($L67,tKategorien[[Limit diast. ]:[Kat.]],2)) -> 
H66: 2022-03-06 | I66: Mittag | J66: =INT(H66)+0.5 -> 44626.5 | K66: =VLOOKUP(tSequence[[#This Row],[Datum2]],tData[[Sort]:[Puls]],2,FALSE) ->  | L66: =VLOOKUP(tSequence[[#This Row],[Datum2]],tData[[Sort]:[Puls]],3,FALSE) ->  | M66: =VLOOKUP(tSequence[[#This Row],[Datum2]],tData[[Sort]:[Puls]],4,FALSE) -> 
H67: 2022-03-06 | I67: Abend | J67: =INT(H67)+0.75 -> 44626.75 | K67: =VLOOKUP(tSequence[[#This Row],[Datum2]],tData[[Sort]:[Puls]],2,FALSE) ->  | L67: =VLOOKUP(tSequence[[#This Row],[Datum2]],tData[[Sort]:[Puls]],3,FALSE) ->  | M67: =VLOOKUP(tSequence[[#This Row],[Datum2]],tData[[Sort]:[Puls]],4,FALSE) -> 
H68: 2022-03-07 | I68: Morgen | J68: =INT(H68)+0.25 -> 44627.25 | K68: =VLOOKUP(tSequence[[#This Row],[Datum2]],tData[[Sort]:[Puls]],2,FALSE) ->  | L68: =VLOOKUP(tSequence[[#This Row],[Datum2]],tData[[Sort]:[Puls]],3,FALSE) ->  | M68: =VLOOKUP(tSequence[[#This Row],[Datum2]],tData[[Sort]:[Puls]],4,FALSE) ->  | N68: =MAX(VLOOKUP($K68,tKategorien[],3),VLOOKUP($L68,tKategorien[[Limit diast. ]:[Kat.]],2)) ->  | O68: =MAX(VLOOKUP($K69,tKategorien[],3),VLOOKUP($L69,tKategorien[[Limit diast. ]:[Kat.]],2)) ->  | P68: =MAX(VLOOKUP($K70,tKategorien[],3),VLOOKUP($L70,tKategorien[[Limit diast. ]:[Kat.]],2)) -> 
H69: 2022-03-07 | I69: Mittag | J69: =INT(H69)+0.5 -> 44627.5 | K69: =VLOOKUP(tSequence[[#This Row],[Datum2]],tData[[Sort]:[Puls]],2,FALSE) ->  | L69: =VLOOKUP(tSequence[[#This Row],[Datum2]],tData[[Sort]:[Puls]],3,FALSE) ->  | M69: =VLOOKUP(tSequence[[#This Row],[Datum2]],tData[[Sort]:[Puls]],4,FALSE) -> 
H70: 2022-03-07 | I70: Abend | J70: =INT(H70)+0.75 -> 44627.75 | K70: =VLOOKUP(tSequence[[#This Row],[Datum2]],tData[[Sort]:[Puls]],2,FALSE) ->  | L70: =VLOOKUP(tSequence[[#This Row],[Datum2]],tData[[Sort]:[Puls]],3,FALSE) ->  | M70: =VLOOKUP(tSequence[[#This Row],[Datum2]],tData[[Sort]:[Puls]],4,FALSE) -> 
H71: 2022-03-08 | I71: Morgen | J71: =INT(H71)+0.25 -> 44628.25 | K71: =VLOOKUP(tSequence[[#This Row],[Datum2]],tData[[Sort]:[Puls]],2,FALSE) ->  | L71: =VLOOKUP(tSequence[[#This Row],[Datum2]],tData[[Sort]:[Puls]],3,FALSE) ->  | M71: =VLOOKUP(tSequence[[#This Row],[Datum2]],tData[[Sort]:[Puls]],4,FALSE) ->  | N71: =MAX(VLOOKUP($K71,tKategorien[],3),VLOOKUP($L71,tKategorien[[Limit diast. ]:[Kat.]],2)) ->  | O71: =MAX(VLOOKUP($K72,tKategorien[],3),VLOOKUP($L72,tKategorien[[Limit diast. ]:[Kat.]],2)) ->  | P71: =MAX(VLOOKUP($K73,tKategorien[],3),VLOOKUP($L73,tKategorien[[Limit diast. ]:[Kat.]],2)) -> 
H72: 2022-03-08 | I72: Mittag | J72: =INT(H72)+0.5 -> 44628.5 | K72: =VLOOKUP(tSequence[[#This Row],[Datum2]],tData[[Sort]:[Puls]],2,FALSE) ->  | L72: =VLOOKUP(tSequence[[#This Row],[Datum2]],tData[[Sort]:[Puls]],3,FALSE) ->  | M72: =VLOOKUP(tSequence[[#This Row],[Datum2]],tData[[Sort]:[Puls]],4,FALSE) -> 
H73: 2022-03-08 | I73: Abend | J73: =INT(H73)+0.75 -> 44628.75 | K73: =VLOOKUP(tSequence[[#This Row],[Datum2]],tData[[Sort]:[Puls]],2,FALSE) ->  | L73: =VLOOKUP(tSequence[[#This Row],[Datum2]],tData[[Sort]:[Puls]],3,FALSE) ->  | M73: =VLOOKUP(tSequence[[#This Row],[Datum2]],tData[[Sort]:[Puls]],4,FALSE) -> 
H74: 2022-03-09 | I74: Morgen | J74: =INT(H74)+0.25 -> 44629.25 | K74: =VLOOKUP(tSequence[[#This Row],[Datum2]],tData[[Sort]:[Puls]],2,FALSE) ->  | L74: =VLOOKUP(tSequence[[#This Row],[Datum2]],tData[[Sort]:[Puls]],3,FALSE) ->  | M74: =VLOOKUP(tSequence[[#This Row],[Datum2]],tData[[Sort]:[Puls]],4,FALSE) ->  | N74: =MAX(VLOOKUP($K74,tKategorien[],3),VLOOKUP($L74,tKategorien[[Limit diast. ]:[Kat.]],2)) ->  | O74: =MAX(VLOOKUP($K75,tKategorien[],3),VLOOKUP($L75,tKategorien[[Limit diast. ]:[Kat.]],2)) ->  | P74: =MAX(VLOOKUP($K76,tKategorien[],3),VLOOKUP($L76,tKategorien[[Limit diast. ]:[Kat.]],2)) -> 
H75: 2022-03-09 | I75: Mittag | J75: =INT(H75)+0.5 -> 44629.5 | K75: =VLOOKUP(tSequence[[#This Row],[Datum2]],tData[[Sort]:[Puls]],2,FALSE) ->  | L75: =VLOOKUP(tSequence[[#This Row],[Datum2]],tData[[Sort]:[Puls]],3,FALSE) ->  | M75: =VLOOKUP(tSequence[[#This Row],[Datum2]],tData[[Sort]:[Puls]],4,FALSE) -> 
H76: 2022-03-09 | I76: Abend | J76: =INT(H76)+0.75 -> 44629.75 | K76: =VLOOKUP(tSequence[[#This Row],[Datum2]],tData[[Sort]:[Puls]],2,FALSE) ->  | L76: =VLOOKUP(tSequence[[#This Row],[Datum2]],tData[[Sort]:[Puls]],3,FALSE) ->  | M76: =VLOOKUP(tSequence[[#This Row],[Datum2]],tData[[Sort]:[Puls]],4,FALSE) -> 
H77: 2022-03-10 | I77: Morgen | J77: =INT(H77)+0.25 -> 44630.25 | K77: =VLOOKUP(tSequence[[#This Row],[Datum2]],tData[[Sort]:[Puls]],2,FALSE) ->  | L77: =VLOOKUP(tSequence[[#This Row],[Datum2]],tData[[Sort]:[Puls]],3,FALSE) ->  | M77: =VLOOKUP(tSequence[[#This Row],[Datum2]],tData[[Sort]:[Puls]],4,FALSE) ->  | N77: =MAX(VLOOKUP($K77,tKategorien[],3),VLOOKUP($L77,tKategorien[[Limit diast. ]:[Kat.]],2)) ->  | O77: =MAX(VLOOKUP($K78,tKategorien[],3),VLOOKUP($L78,tKategorien[[Limit diast. ]:[Kat.]],2)) ->  | P77: =MAX(VLOOKUP($K79,tKategorien[],3),VLOOKUP($L79,tKategorien[[Limit diast. ]:[Kat.]],2)) -> 
H78: 2022-03-10 | I78: Mittag | J78: =INT(H78)+0.5 -> 44630.5 | K78: =VLOOKUP(tSequence[[#This Row],[Datum2]],tData[[Sort]:[Puls]],2,FALSE) ->  | L78: =VLOOKUP(tSequence[[#This Row],[Datum2]],tData[[Sort]:[Puls]],3,FALSE) ->  | M78: =VLOOKUP(tSequence[[#This Row],[Datum2]],tData[[Sort]:[Puls]],4,FALSE) -> 
H79: 2022-03-10 | I79: Abend | J79: =INT(H79)+0.75 -> 44630.75 | K79: =VLOOKUP(tSequence[[#This Row],[Datum2]],tData[[Sort]:[Puls]],2,FALSE) ->  | L79: =VLOOKUP(tSequence[[#This Row],[Datum2]],tData[[Sort]:[Puls]],3,FALSE) ->  | M79: =VLOOKUP(tSequence[[#This Row],[Datum2]],tData[[Sort]:[Puls]],4,FALSE) -> 
H80: 2022-03-11 | I80: Morgen | J80: =INT(H80)+0.25 -> 44631.25 | K80: =VLOOKUP(tSequence[[#This Row],[Datum2]],tData[[Sort]:[Puls]],2,FALSE) ->  | L80: =VLOOKUP(tSequence[[#This Row],[Datum2]],tData[[Sort]:[Puls]],3,FALSE) ->  | M80: =VLOOKUP(tSequence[[#This Row],[Datum2]],tData[[Sort]:[Puls]],4,FALSE) ->  | N80: =MAX(VLOOKUP($K80,tKategorien[],3),VLOOKUP($L80,tKategorien[[Limit diast. ]:[Kat.]],2)) ->  | O80: =MAX(VLOOKUP($K81,tKategorien[],3),VLOOKUP($L81,tKategorien[[Limit diast. ]:[Kat.]],2)) ->  | P80: =MAX(VLOOKUP($K82,tKategorien[],3),VLOOKUP($L82,tKategorien[[Limit diast. ]:[Kat.]],2)) -> 
H81: 2022-03-11 | I81: Mittag | J81: =INT(H81)+0.5 -> 44631.5 | K81: =VLOOKUP(tSequence[[#This Row],[Datum2]],tData[[Sort]:[Puls]],2,FALSE) ->  | L81: =VLOOKUP(tSequence[[#This Row],[Datum2]],tData[[Sort]:[Puls]],3,FALSE) ->  | M81: =VLOOKUP(tSequence[[#This Row],[Datum2]],tData[[Sort]:[Puls]],4,FALSE) -> 
H82: 2022-03-11 | I82: Abend | J82: =INT(H82)+0.75 -> 44631.75 | K82: =VLOOKUP(tSequence[[#This Row],[Datum2]],tData[[Sort]:[Puls]],2,FALSE) ->  | L82: =VLOOKUP(tSequence[[#This Row],[Datum2]],tData[[Sort]:[Puls]],3,FALSE) ->  | M82: =VLOOKUP(tSequence[[#This Row],[Datum2]],tData[[Sort]:[Puls]],4,FALSE) -> 
H83: 2022-03-12 | I83: Morgen | J83: =INT(H83)+0.25 -> 44632.25 | K83: =VLOOKUP(tSequence[[#This Row],[Datum2]],tData[[Sort]:[Puls]],2,FALSE) ->  | L83: =VLOOKUP(tSequence[[#This Row],[Datum2]],tData[[Sort]:[Puls]],3,FALSE) ->  | M83: =VLOOKUP(tSequence[[#This Row],[Datum2]],tData[[Sort]:[Puls]],4,FALSE) ->  | N83: =MAX(VLOOKUP($K83,tKategorien[],3),VLOOKUP($L83,tKategorien[[Limit diast. ]:[Kat.]],2)) ->  | O83: =MAX(VLOOKUP($K84,tKategorien[],3),VLOOKUP($L84,tKategorien[[Limit diast. ]:[Kat.]],2)) ->  | P83: =MAX(VLOOKUP($K85,tKategorien[],3),VLOOKUP($L85,tKategorien[[Limit diast. ]:[Kat.]],2)) -> 
H84: 2022-03-12 | I84: Mittag | J84: =INT(H84)+0.5 -> 44632.5 | K84: =VLOOKUP(tSequence[[#This Row],[Datum2]],tData[[Sort]:[Puls]],2,FALSE) ->  | L84: =VLOOKUP(tSequence[[#This Row],[Datum2]],tData[[Sort]:[Puls]],3,FALSE) ->  | M84: =VLOOKUP(tSequence[[#This Row],[Datum2]],tData[[Sort]:[Puls]],4,FALSE) -> 
H85: 2022-03-12 | I85: Abend | J85: =INT(H85)+0.75 -> 44632.75 | K85: =VLOOKUP(tSequence[[#This Row],[Datum2]],tData[[Sort]:[Puls]],2,FALSE) ->  | L85: =VLOOKUP(tSequence[[#This Row],[Datum2]],tData[[Sort]:[Puls]],3,FALSE) ->  | M85: =VLOOKUP(tSequence[[#This Row],[Datum2]],tData[[Sort]:[Puls]],4,FALSE) -> 
H86: 2022-03-13 | I86: Morgen | J86: =INT(H86)+0.25 -> 44633.25 | K86: =VLOOKUP(tSequence[[#This Row],[Datum2]],tData[[Sort]:[Puls]],2,FALSE) ->  | L86: =VLOOKUP(tSequence[[#This Row],[Datum2]],tData[[Sort]:[Puls]],3,FALSE) ->  | M86: =VLOOKUP(tSequence[[#This Row],[Datum2]],tData[[Sort]:[Puls]],4,FALSE) ->  | N86: =MAX(VLOOKUP($K86,tKategorien[],3),VLOOKUP($L86,tKategorien[[Limit diast. ]:[Kat.]],2)) ->  | O86: =MAX(VLOOKUP($K87,tKategorien[],3),VLOOKUP($L87,tKategorien[[Limit diast. ]:[Kat.]],2)) ->  | P86: =MAX(VLOOKUP($K88,tKategorien[],3),VLOOKUP($L88,tKategorien[[Limit diast. ]:[Kat.]],2)) -> 
H87: 2022-03-13 | I87: Mittag | J87: =INT(H87)+0.5 -> 44633.5 | K87: =VLOOKUP(tSequence[[#This Row],[Datum2]],tData[[Sort]:[Puls]],2,FALSE) ->  | L87: =VLOOKUP(tSequence[[#This Row],[Datum2]],tData[[Sort]:[Puls]],3,FALSE) ->  | M87: =VLOOKUP(tSequence[[#This Row],[Datum2]],tData[[Sort]:[Puls]],4,FALSE) -> 
H88: 2022-03-13 | I88: Abend | J88: =INT(H88)+0.75 -> 44633.75 | K88: =VLOOKUP(tSequence[[#This Row],[Datum2]],tData[[Sort]:[Puls]],2,FALSE) ->  | L88: =VLOOKUP(tSequence[[#This Row],[Datum2]],tData[[Sort]:[Puls]],3,FALSE) ->  | M88: =VLOOKUP(tSequence[[#This Row],[Datum2]],tData[[Sort]:[Puls]],4,FALSE) -> 
A100: Datum1 | B100: Tageszeit | C100: Sort | D100: Systolisch | E100: Diastolisch | F100: Puls | G100: Gewicht | H100: Bemerkung | I100: Jahr | J100: Woche | K100: Durchschnitt
A101: 2019-10-19 | B101: Morgen | C101: 43757.25 | D101: 135 | E101: 89 | F101: 73 | G101: 131.8 | I101: =YEAR(tCopiedWeightData[[#This Row],[Sort]]) -> 2019 | J101: =WEEKNUM(tCopiedWeightData[[#This Row],[Sort]],21) -> 42 | K101: =SUBTOTAL(1, $G101:$G101) -> 131.8
A102: 2019-10-25 | B102: Morgen | C102: 43763.25 | D102: 116 | E102: 87 | F102: 83 | G102: 131 | I102: =YEAR(tCopiedWeightData[[#This Row],[Sort]]) -> 2019 | J102: =WEEKNUM(tCopiedWeightData[[#This Row],[Sort]],21) -> 43
A103: 2019-10-26 | B103: Morgen | C103: 43764.25 | D103: 117 | E103: 81 | F103: 75 | G103: 130.9 | I103: =YEAR(tCopiedWeightData[[#This Row],[Sort]]) -> 2019 | J103: =WEEKNUM(tCopiedWeightData[[#This Row],[Sort]],21) -> 43
A104: 2019-10-27 | B104: Morgen | C104: 43765.25 | D104: 133 | E104: 90 | F104: 84 | G104: 131.5 | I104: =YEAR(tCopiedWeightData[[#This Row],[Sort]]) -> 2019 | J104: =WEEKNUM(tCopiedWeightData[[#This Row],[Sort]],21) -> 43 | K104: =SUBTOTAL(1, $G102:$G104) -> 131.1333333
A105: 2019-10-28 | B105: Morgen | C105: 43766.25 | D105: 127 | E105: 93 | F105: 79 | G105: 131.2 | I105: =YEAR(tCopiedWeightData[[#This Row],[Sort]]) -> 2019 | J105: =WEEKNUM(tCopiedWeightData[[#This Row],[Sort]],21) -> 44
A106: 2019-10-29 | B106: Morgen | C106: 43767.25 | D106: 136 | E106: 91 | F106: 82 | G106: 131.1 | I106: =YEAR(tCopiedWeightData[[#This Row],[Sort]]) -> 2019 | J106: =WEEKNUM(tCopiedWeightData[[#This Row],[Sort]],21) -> 44
A107: 2019-10-30 | B107: Morgen | C107: 43768.25 | D107: 129 | E107: 89 | F107: 85 | G107: 130.3 | I107: =YEAR(tCopiedWeightData[[#This Row],[Sort]]) -> 2019 | J107: =WEEKNUM(tCopiedWeightData[[#This Row],[Sort]],21) -> 44
A108: 2019-10-31 | B108: Morgen | C108: 43769.25 | D108: 126 | E108: 85 | F108: 74 | G108: 130.4 | I108: =YEAR(tCopiedWeightData[[#This Row],[Sort]]) -> 2019 | J108: =WEEKNUM(tCopiedWeightData[[#This Row],[Sort]],21) -> 44
A109: 2019-11-01 | B109: Morgen | C109: 43770.25 | D109: 115 | E109: 79 | F109: 80 | G109: 131.4 | I109: =YEAR(tCopiedWeightData[[#This Row],[Sort]]) -> 2019 | J109: =WEEKNUM(tCopiedWeightData[[#This Row],[Sort]],21) -> 44
A110: 2019-11-02 | B110: Morgen | C110: 43771.25 | D110: 129 | E110: 92 | F110: 75 | G110: 131.1 | I110: =YEAR(tCopiedWeightData[[#This Row],[Sort]]) -> 2019 | J110: =WEEKNUM(tCopiedWeightData[[#This Row],[Sort]],21) -> 44
A111: 2019-11-03 | B111: Morgen | C111: 43772.25 | D111: 123 | E111: 80 | F111: 82 | G111: 131.8 | I111: =YEAR(tCopiedWeightData[[#This Row],[Sort]]) -> 2019 | J111: =WEEKNUM(tCopiedWeightData[[#This Row],[Sort]],21) -> 44 | K111: =SUBTOTAL(1, $G105:$G111) -> 131.0428571
A112: 2019-11-04 | B112: Morgen | C112: 43773.25 | D112: 132 | E112: 87 | F112: 77 | G112: 131.1 | I112: =YEAR(tCopiedWeightData[[#This Row],[Sort]]) -> 2019 | J112: =WEEKNUM(tCopiedWeightData[[#This Row],[Sort]],21) -> 45
A113: 2019-11-05 | B113: Morgen | C113: 43774.25 | D113: 126 | E113: 86 | F113: 86 | G113: 131.3 | I113: =YEAR(tCopiedWeightData[[#This Row],[Sort]]) -> 2019 | J113: =WEEKNUM(tCopiedWeightData[[#This Row],[Sort]],21) -> 45
A114: 2019-11-06 | B114: Morgen | C114: 43775.25 | D114: 123 | E114: 87 | F114: 79 | G114: 131.2 | I114: =YEAR(tCopiedWeightData[[#This Row],[Sort]]) -> 2019 | J114: =WEEKNUM(tCopiedWeightData[[#This Row],[Sort]],21) -> 45
A115: 2019-11-08 | B115: Morgen | C115: 43777.25 | D115: 132 | E115: 92 | F115: 84 | G115: 130.9 | I115: =YEAR(tCopiedWeightData[[#This Row],[Sort]]) -> 2019 | J115: =WEEKNUM(tCopiedWeightData[[#This Row],[Sort]],21) -> 45
A116: 2019-11-09 | B116: Morgen | C116: 43778.25 | D116: 136 | E116: 89 | F116: 89 | G116: 131.1 | I116: =YEAR(tCopiedWeightData[[#This Row],[Sort]]) -> 2019 | J116: =WEEKNUM(tCopiedWeightData[[#This Row],[Sort]],21) -> 45
A117: 2019-11-10 | B117: Morgen | C117: 43779.25 | D117: 123 | E117: 83 | F117: 87 | G117: 130.4 | I117: =YEAR(tCopiedWeightData[[#This Row],[Sort]]) -> 2019 | J117: =WEEKNUM(tCopiedWeightData[[#This Row],[Sort]],21) -> 45 | K117: =SUBTOTAL(1, $G112:$G117) -> 131
A118: 2019-11-11 | B118: Morgen | C118: 43780.25 | D118: 119 | E118: 82 | F118: 74 | G118: 130.6 | I118: =YEAR(tCopiedWeightData[[#This Row],[Sort]]) -> 2019 | J118: =WEEKNUM(tCopiedWeightData[[#This Row],[Sort]],21) -> 46
A119: 2019-11-12 | B119: Morgen | C119: 43781.25 | D119: 120 | E119: 79 | F119: 81 | G119: 131.1 | I119: =YEAR(tCopiedWeightData[[#This Row],[Sort]]) -> 2019 | J119: =WEEKNUM(tCopiedWeightData[[#This Row],[Sort]],21) -> 46
A120: 2019-11-13 | B120: Morgen | C120: 43782.25 | D120: 133 | E120: 83 | F120: 75 | G120: 130.7 | I120: =YEAR(tCopiedWeightData[[#This Row],[Sort]]) -> 2019 | J120: =WEEKNUM(tCopiedWeightData[[#This Row],[Sort]],21) -> 46
A121: 2019-11-14 | B121: Morgen | C121: 43783.25 | D121: 128 | E121: 91 | F121: 90 | G121: 130.5 | I121: =YEAR(tCopiedWeightData[[#This Row],[Sort]]) -> 2019 | J121: =WEEKNUM(tCopiedWeightData[[#This Row],[Sort]],21) -> 46
A122: 2019-11-15 | B122: Morgen | C122: 43784.25 | D122: 124 | E122: 81 | F122: 98 | G122: 131.2 | I122: =YEAR(tCopiedWeightData[[#This Row],[Sort]]) -> 2019 | J122: =WEEKNUM(tCopiedWeightData[[#This Row],[Sort]],21) -> 46
A123: 2019-11-16 | B123: Morgen | C123: 43785.25 | D123: 139 | E123: 88 | F123: 81 | G123: 130.8 | I123: =YEAR(tCopiedWeightData[[#This Row],[Sort]]) -> 2019 | J123: =WEEKNUM(tCopiedWeightData[[#This Row],[Sort]],21) -> 46
A124: 2019-11-17 | B124: Morgen | C124: 43786.25 | D124: 128 | E124: 92 | F124: 82 | G124: 130.5 | I124: =YEAR(tCopiedWeightData[[#This Row],[Sort]]) -> 2019 | J124: =WEEKNUM(tCopiedWeightData[[#This Row],[Sort]],21) -> 46 | K124: =SUBTOTAL(1, $G118:$G124) -> 130.7714286
A125: 2019-11-18 | B125: Morgen | C125: 43787.25 | D125: 120 | E125: 84 | F125: 78 | G125: 130 | I125: =YEAR(tCopiedWeightData[[#This Row],[Sort]]) -> 2019 | J125: =WEEKNUM(tCopiedWeightData[[#This Row],[Sort]],21) -> 47
A126: 2019-11-19 | B126: Morgen | C126: 43788.25 | D126: 116 | E126: 85 | F126: 79 | G126: 130.1 | I126: =YEAR(tCopiedWeightData[[#This Row],[Sort]]) -> 2019 | J126: =WEEKNUM(tCopiedWeightData[[#This Row],[Sort]],21) -> 47
A127: 2019-11-20 | B127: Morgen | C127: 43789.25 | D127: 138 | E127: 86 | F127: 78 | G127: 130.6 | I127: =YEAR(tCopiedWeightData[[#This Row],[Sort]]) -> 2019 | J127: =WEEKNUM(tCopiedWeightData[[#This Row],[Sort]],21) -> 47
A128: 2019-11-21 | B128: Morgen | C128: 43790.25 | D128: 125 | E128: 86 | F128: 74 | G128: 130.1 | I128: =YEAR(tCopiedWeightData[[#This Row],[Sort]]) -> 2019 | J128: =WEEKNUM(tCopiedWeightData[[#This Row],[Sort]],21) -> 47
A129: 2019-11-22 | B129: Morgen | C129: 43791.25 | D129: 123 | E129: 87 | F129: 76 | G129: 131.5 | I129: =YEAR(tCopiedWeightData[[#This Row],[Sort]]) -> 2019 | J129: =WEEKNUM(tCopiedWeightData[[#This Row],[Sort]],21) -> 47
A130: 2019-11-23 | B130: Morgen | C130: 43792.25 | D130: 128 | E130: 87 | F130: 74 | G130: 130.3 | I130: =YEAR(tCopiedWeightData[[#This Row],[Sort]]) -> 2019 | J130: =WEEKNUM(tCopiedWeightData[[#This Row],[Sort]],21) -> 47
A131: 2019-11-24 | B131: Morgen | C131: 43793.25 | D131: 123 | E131: 81 | F131: 80 | G131: 130 | I131: =YEAR(tCopiedWeightData[[#This Row],[Sort]]) -> 2019 | J131: =WEEKNUM(tCopiedWeightData[[#This Row],[Sort]],21) -> 47 | K131: =SUBTOTAL(1, $G125:$G131) -> 130.3714286
A132: 2019-11-25 | B132: Morgen | C132: 43794.25 | D132: 132 | E132: 82 | F132: 84 | G132: 129.7 | I132: =YEAR(tCopiedWeightData[[#This Row],[Sort]]) -> 2019 | J132: =WEEKNUM(tCopiedWeightData[[#This Row],[Sort]],21) -> 48
A133: 2019-11-26 | B133: Morgen | C133: 43795.25 | D133: 118 | E133: 79 | F133: 77 | G133: 130.6 | I133: =YEAR(tCopiedWeightData[[#This Row],[Sort]]) -> 2019 | J133: =WEEKNUM(tCopiedWeightData[[#This Row],[Sort]],21) -> 48
A134: 2019-11-27 | B134: Morgen | C134: 43796.25 | D134: 131 | E134: 88 | F134: 83 | G134: 130.5 | I134: =YEAR(tCopiedWeightData[[#This Row],[Sort]]) -> 2019 | J134: =WEEKNUM(tCopiedWeightData[[#This Row],[Sort]],21) -> 48
A135: 2019-11-28 | B135: Morgen | C135: 43797.25 | D135: 132 | E135: 85 | F135: 76 | G135: 129.4 | I135: =YEAR(tCopiedWeightData[[#This Row],[Sort]]) -> 2019 | J135: =WEEKNUM(tCopiedWeightData[[#This Row],[Sort]],21) -> 48
A136: 2019-11-29 | B136: Morgen | C136: 43798.25 | D136: 126 | E136: 81 | F136: 78 | G136: 130.2 | I136: =YEAR(tCopiedWeightData[[#This Row],[Sort]]) -> 2019 | J136: =WEEKNUM(tCopiedWeightData[[#This Row],[Sort]],21) -> 48
A137: 2019-11-30 | B137: Morgen | C137: 43799.25 | D137: 127 | E137: 88 | F137: 82 | G137: 129.9 | I137: =YEAR(tCopiedWeightData[[#This Row],[Sort]]) -> 2019 | J137: =WEEKNUM(tCopiedWeightData[[#This Row],[Sort]],21) -> 48
A138: 2019-12-01 | B138: Morgen | C138: 43800.25 | D138: 120 | E138: 85 | F138: 72 | G138: 129.9 | I138: =YEAR(tCopiedWeightData[[#This Row],[Sort]]) -> 2019 | J138: =WEEKNUM(tCopiedWeightData[[#This Row],[Sort]],21) -> 48 | K138: =SUBTOTAL(1, $G132:$G138) -> 130.0285714
A139: 2019-12-02 | B139: Morgen | C139: 43801.25 | D139: 138 | E139: 84 | F139: 77 | G139: 129.7 | I139: =YEAR(tCopiedWeightData[[#This Row],[Sort]]) -> 2019 | J139: =WEEKNUM(tCopiedWeightData[[#This Row],[Sort]],21) -> 49
A140: 2019-12-03 | B140: Morgen | C140: 43802.25 | D140: 128 | E140: 83 | F140: 79 | G140: 129.6 | I140: =YEAR(tCopiedWeightData[[#This Row],[Sort]]) -> 2019 | J140: =WEEKNUM(tCopiedWeightData[[#This Row],[Sort]],21) -> 49
A141: 2019-12-04 | B141: Morgen | C141: 43803.25 | D141: 129 | E141: 81 | F141: 79 | G141: 131 | I141: =YEAR(tCopiedWeightData[[#This Row],[Sort]]) -> 2019 | J141: =WEEKNUM(tCopiedWeightData[[#This Row],[Sort]],21) -> 49
A142: 2019-12-05 | B142: Morgen | C142: 43804.25 | D142: 136 | E142: 86 | F142: 81 | G142: 129.7 | I142: =YEAR(tCopiedWeightData[[#This Row],[Sort]]) -> 2019 | J142: =WEEKNUM(tCopiedWeightData[[#This Row],[Sort]],21) -> 49
A143: 2019-12-06 | B143: Morgen | C143: 43805.25 | D143: 136 | E143: 87 | F143: 79 | G143: 129 | I143: =YEAR(tCopiedWeightData[[#This Row],[Sort]]) -> 2019 | J143: =WEEKNUM(tCopiedWeightData[[#This Row],[Sort]],21) -> 49
A144: 2019-12-07 | B144: Morgen | C144: 43806.25 | D144: 126 | E144: 88 | F144: 85 | G144: 129 | I144: =YEAR(tCopiedWeightData[[#This Row],[Sort]]) -> 2019 | J144: =WEEKNUM(tCopiedWeightData[[#This Row],[Sort]],21) -> 49
A145: 2019-12-08 | B145: Morgen | C145: 43807.25 | D145: 121 | E145: 87 | F145: 80 | G145: 128.2 | I145: =YEAR(tCopiedWeightData[[#This Row],[Sort]]) -> 2019 | J145: =WEEKNUM(tCopiedWeightData[[#This Row],[Sort]],21) -> 49 | K145: =SUBTOTAL(1, $G139:$G145) -> 129.4571429
A146: 2019-12-09 | B146: Morgen | C146: 43808.25 | D146: 130 | E146: 84 | F146: 81 | G146: 129.6 | I146: =YEAR(tCopiedWeightData[[#This Row],[Sort]]) -> 2019 | J146: =WEEKNUM(tCopiedWeightData[[#This Row],[Sort]],21) -> 50
A147: 2019-12-10 | B147: Morgen | C147: 43809.25 | D147: 114 | E147: 74 | F147: 71 | G147: 129.9 | I147: =YEAR(tCopiedWeightData[[#This Row],[Sort]]) -> 2019 | J147: =WEEKNUM(tCopiedWeightData[[#This Row],[Sort]],21) -> 50
A148: 2019-12-11 | B148: Morgen | C148: 43810.25 | D148: 135 | E148: 84 | F148: 89 | G148: 130.6 | I148: =YEAR(tCopiedWeightData[[#This Row],[Sort]]) -> 2019 | J148: =WEEKNUM(tCopiedWeightData[[#This Row],[Sort]],21) -> 50
A149: 2019-12-12 | B149: Morgen | C149: 43811.25 | D149: 138 | E149: 79 | F149: 89 | G149: 129.1 | I149: =YEAR(tCopiedWeightData[[#This Row],[Sort]]) -> 2019 | J149: =WEEKNUM(tCopiedWeightData[[#This Row],[Sort]],21) -> 50
A150: 2019-12-13 | B150: Morgen | C150: 43812.25 | D150: 121 | E150: 71 | F150: 76 | G150: 129.5 | I150: =YEAR(tCopiedWeightData[[#This Row],[Sort]]) -> 2019 | J150: =WEEKNUM(tCopiedWeightData[[#This Row],[Sort]],21) -> 50
A151: 2019-12-14 | B151: Morgen | C151: 43813.25 | D151: 125 | E151: 89 | F151: 87 | G151: 128.7 | I151: =YEAR(tCopiedWeightData[[#This Row],[Sort]]) -> 2019 | J151: =WEEKNUM(tCopiedWeightData[[#This Row],[Sort]],21) -> 50
A152: 2019-12-15 | B152: Morgen | C152: 43814.25 | D152: 132 | E152: 96 | F152: 87 | G152: 128.7 | I152: =YEAR(tCopiedWeightData[[#This Row],[Sort]]) -> 2019 | J152: =WEEKNUM(tCopiedWeightData[[#This Row],[Sort]],21) -> 50 | K152: =SUBTOTAL(1, $G146:$G152) -> 129.4428571
A153: 2019-12-17 | B153: Morgen | C153: 43816.25 | D153: 121 | E153: 82 | F153: 86 | G153: 128.8 | I153: =YEAR(tCopiedWeightData[[#This Row],[Sort]]) -> 2019 | J153: =WEEKNUM(tCopiedWeightData[[#This Row],[Sort]],21) -> 51
A154: 2019-12-18 | B154: Morgen | C154: 43817.25 | D154: 116 | E154: 82 | F154: 78 | G154: 128.4 | I154: =YEAR(tCopiedWeightData[[#This Row],[Sort]]) -> 2019 | J154: =WEEKNUM(tCopiedWeightData[[#This Row],[Sort]],21) -> 51
A155: 2019-12-19 | B155: Morgen | C155: 43818.25 | D155: 125 | E155: 89 | F155: 78 | G155: 128 | I155: =YEAR(tCopiedWeightData[[#This Row],[Sort]]) -> 2019 | J155: =WEEKNUM(tCopiedWeightData[[#This Row],[Sort]],21) -> 51
A156: 2019-12-20 | B156: Morgen | C156: 43819.25 | D156: 136 | E156: 96 | F156: 87 | G156: 128.3 | I156: =YEAR(tCopiedWeightData[[#This Row],[Sort]]) -> 2019 | J156: =WEEKNUM(tCopiedWeightData[[#This Row],[Sort]],21) -> 51
A157: 2019-12-21 | B157: Morgen | C157: 43820.25 | D157: 125 | E157: 90 | F157: 82 | G157: 128.3 | I157: =YEAR(tCopiedWeightData[[#This Row],[Sort]]) -> 2019 | J157: =WEEKNUM(tCopiedWeightData[[#This Row],[Sort]],21) -> 51
A158: 2019-12-22 | B158: Morgen | C158: 43821.25 | D158: 138 | E158: 95 | F158: 83 | G158: 127.7 | I158: =YEAR(tCopiedWeightData[[#This Row],[Sort]]) -> 2019 | J158: =WEEKNUM(tCopiedWeightData[[#This Row],[Sort]],21) -> 51 | K158: =SUBTOTAL(1, $G153:$G158) -> 128.25
A159: 2019-12-23 | B159: Morgen | C159: 43822.25 | D159: 128 | E159: 77 | F159: 94 | G159: 128.1 | I159: =YEAR(tCopiedWeightData[[#This Row],[Sort]]) -> 2019 | J159: =WEEKNUM(tCopiedWeightData[[#This Row],[Sort]],21) -> 52
A160: 2019-12-24 | B160: Morgen | C160: 43823.25 | D160: 124 | E160: 89 | F160: 97 | G160: 127.9 | I160: =YEAR(tCopiedWeightData[[#This Row],[Sort]]) -> 2019 | J160: =WEEKNUM(tCopiedWeightData[[#This Row],[Sort]],21) -> 52
A161: 2019-12-25 | B161: Morgen | C161: 43824.25 | D161: 144 | E161: 95 | F161: 90 | G161: 128.6 | I161: =YEAR(tCopiedWeightData[[#This Row],[Sort]]) -> 2019 | J161: =WEEKNUM(tCopiedWeightData[[#This Row],[Sort]],21) -> 52
A162: 2019-12-26 | B162: Morgen | C162: 43825.25 | D162: 138 | E162: 95 | F162: 87 | G162: 128.6 | I162: =YEAR(tCopiedWeightData[[#This Row],[Sort]]) -> 2019 | J162: =WEEKNUM(tCopiedWeightData[[#This Row],[Sort]],21) -> 52
A163: 2019-12-27 | B163: Morgen | C163: 43826.25 | D163: 122 | E163: 80 | F163: 73 | G163: 128.6 | I163: =YEAR(tCopiedWeightData[[#This Row],[Sort]]) -> 2019 | J163: =WEEKNUM(tCopiedWeightData[[#This Row],[Sort]],21) -> 52
A164: 2019-12-28 | B164: Morgen | C164: 43827.25 | D164: 141 | E164: 91 | F164: 86 | G164: 128.6 | I164: =YEAR(tCopiedWeightData[[#This Row],[Sort]]) -> 2019 | J164: =WEEKNUM(tCopiedWeightData[[#This Row],[Sort]],21) -> 52
A165: 2019-12-29 | B165: Morgen | C165: 43828.25 | D165: 111 | E165: 78 | F165: 71 | G165: 128.5 | I165: =YEAR(tCopiedWeightData[[#This Row],[Sort]]) -> 2019 | J165: =WEEKNUM(tCopiedWeightData[[#This Row],[Sort]],21) -> 52 | K165: =SUBTOTAL(1, $G159:$G165) -> 128.4142857
A166: 2019-12-30 | B166: Morgen | C166: 43829.25 | D166: 130 | E166: 89 | F166: 89 | G166: 128.5 | I166: =YEAR(tCopiedWeightData[[#This Row],[Sort]]) -> 2019 | J166: =WEEKNUM(tCopiedWeightData[[#This Row],[Sort]],21) -> 1
A167: 2019-12-31 | B167: Morgen | C167: 43830.25 | D167: 134 | E167: 95 | F167: 82 | G167: 128.4 | I167: =YEAR(tCopiedWeightData[[#This Row],[Sort]]) -> 2019 | J167: =WEEKNUM(tCopiedWeightData[[#This Row],[Sort]],21) -> 1
A168: 2020-01-01 | B168: Morgen | C168: 43831.25 | D168: 126 | E168: 97 | F168: 83 | G168: 128.1 | I168: =YEAR(tCopiedWeightData[[#This Row],[Sort]]) -> 2020 | J168: =WEEKNUM(tCopiedWeightData[[#This Row],[Sort]],21) -> 1
A169: 2020-01-02 | B169: Morgen | C169: 43832.25 | D169: 126 | E169: 81 | F169: 79 | G169: 127.9 | I169: =YEAR(tCopiedWeightData[[#This Row],[Sort]]) -> 2020 | J169: =WEEKNUM(tCopiedWeightData[[#This Row],[Sort]],21) -> 1
A170: 2020-01-03 | B170: Morgen | C170: 43833.25 | D170: 125 | E170: 89 | F170: 81 | G170: 127.9 | I170: =YEAR(tCopiedWeightData[[#This Row],[Sort]]) -> 2020 | J170: =WEEKNUM(tCopiedWeightData[[#This Row],[Sort]],21) -> 1
A171: 2020-01-04 | B171: Morgen | C171: 43834.25 | D171: 121 | E171: 82 | F171: 80 | G171: 127.5 | I171: =YEAR(tCopiedWeightData[[#This Row],[Sort]]) -> 2020 | J171: =WEEKNUM(tCopiedWeightData[[#This Row],[Sort]],21) -> 1
A172: 2020-01-05 | B172: Morgen | C172: 43835.25 | D172: 128 | E172: 81 | F172: 82 | G172: 127.7 | I172: =YEAR(tCopiedWeightData[[#This Row],[Sort]]) -> 2020 | J172: =WEEKNUM(tCopiedWeightData[[#This Row],[Sort]],21) -> 1 | K172: =SUBTOTAL(1, $G166:$G172) -> 128
A173: 2020-01-06 | B173: Morgen | C173: 43836.25 | D173: 113 | E173: 78 | F173: 101 | G173: 126.9 | I173: =YEAR(tCopiedWeightData[[#This Row],[Sort]]) -> 2020 | J173: =WEEKNUM(tCopiedWeightData[[#This Row],[Sort]],21) -> 2
A174: 2020-01-07 | B174: Morgen | C174: 43837.25 | D174: 107 | E174: 80 | F174: 84 | G174: 126.6 | I174: =YEAR(tCopiedWeightData[[#This Row],[Sort]]) -> 2020 | J174: =WEEKNUM(tCopiedWeightData[[#This Row],[Sort]],21) -> 2
A175: 2020-01-09 | B175: Morgen | C175: 43839.25 | D175: 123 | E175: 86 | F175: 88 | G175: 125.7 | I175: =YEAR(tCopiedWeightData[[#This Row],[Sort]]) -> 2020 | J175: =WEEKNUM(tCopiedWeightData[[#This Row],[Sort]],21) -> 2
A176: 2020-01-10 | B176: Morgen | C176: 43840.25 | D176: 125 | E176: 83 | F176: 81 | G176: 125.2 | I176: =YEAR(tCopiedWeightData[[#This Row],[Sort]]) -> 2020 | J176: =WEEKNUM(tCopiedWeightData[[#This Row],[Sort]],21) -> 2
A177: 2020-01-11 | B177: Morgen | C177: 43841.25 | D177: 117 | E177: 77 | F177: 73 | G177: 125.8 | I177: =YEAR(tCopiedWeightData[[#This Row],[Sort]]) -> 2020 | J177: =WEEKNUM(tCopiedWeightData[[#This Row],[Sort]],21) -> 2
A178: 2020-01-12 | B178: Morgen | C178: 43842.25 | D178: 114 | E178: 78 | F178: 82 | G178: 126.1 | I178: =YEAR(tCopiedWeightData[[#This Row],[Sort]]) -> 2020 | J178: =WEEKNUM(tCopiedWeightData[[#This Row],[Sort]],21) -> 2 | K178: =SUBTOTAL(1, $G173:$G178) -> 126.05
A179: 2020-01-17 | B179: Morgen | C179: 43847.25 | D179: 113 | E179: 83 | F179: 89 | G179: 124.8 | I179: =YEAR(tCopiedWeightData[[#This Row],[Sort]]) -> 2020 | J179: =WEEKNUM(tCopiedWeightData[[#This Row],[Sort]],21) -> 3
A180: 2020-01-18 | B180: Morgen | C180: 43848.25 | D180: 124 | E180: 77 | F180: 81 | G180: 123.8 | I180: =YEAR(tCopiedWeightData[[#This Row],[Sort]]) -> 2020 | J180: =WEEKNUM(tCopiedWeightData[[#This Row],[Sort]],21) -> 3
A181: 2020-01-19 | B181: Morgen | C181: 43849.25 | D181: 114 | E181: 72 | F181: 81 | G181: 123.4 | I181: =YEAR(tCopiedWeightData[[#This Row],[Sort]]) -> 2020 | J181: =WEEKNUM(tCopiedWeightData[[#This Row],[Sort]],21) -> 3 | K181: =SUBTOTAL(1, $G179:$G181) -> 124
A182: 2020-01-20 | B182: Morgen | C182: 43850.25 | D182: 118 | E182: 88 | F182: 85 | G182: 124.5 | I182: =YEAR(tCopiedWeightData[[#This Row],[Sort]]) -> 2020 | J182: =WEEKNUM(tCopiedWeightData[[#This Row],[Sort]],21) -> 4
A183: 2020-01-21 | B183: Morgen | C183: 43851.25 | D183: 118 | E183: 85 | F183: 78 | G183: 124.3 | I183: =YEAR(tCopiedWeightData[[#This Row],[Sort]]) -> 2020 | J183: =WEEKNUM(tCopiedWeightData[[#This Row],[Sort]],21) -> 4
A184: 2020-01-22 | B184: Morgen | C184: 43852.25 | D184: 122 | E184: 78 | F184: 92 | G184: 123.6 | I184: =YEAR(tCopiedWeightData[[#This Row],[Sort]]) -> 2020 | J184: =WEEKNUM(tCopiedWeightData[[#This Row],[Sort]],21) -> 4
A185: 2020-01-23 | B185: Morgen | C185: 43853.25 | D185: 127 | E185: 94 | F185: 78 | G185: 123.4 | I185: =YEAR(tCopiedWeightData[[#This Row],[Sort]]) -> 2020 | J185: =WEEKNUM(tCopiedWeightData[[#This Row],[Sort]],21) -> 4
A186: 2020-01-24 | B186: Morgen | C186: 43854.25 | D186: 125 | E186: 81 | F186: 76 | G186: 123.6 | I186: =YEAR(tCopiedWeightData[[#This Row],[Sort]]) -> 2020 | J186: =WEEKNUM(tCopiedWeightData[[#This Row],[Sort]],21) -> 4
A187: 2020-01-25 | B187: Morgen | C187: 43855.25 | D187: 112 | E187: 82 | F187: 81 | G187: 123.6 | I187: =YEAR(tCopiedWeightData[[#This Row],[Sort]]) -> 2020 | J187: =WEEKNUM(tCopiedWeightData[[#This Row],[Sort]],21) -> 4
A188: 2020-01-26 | B188: Morgen | C188: 43856.25 | D188: 138 | E188: 92 | F188: 79 | G188: 124.6 | I188: =YEAR(tCopiedWeightData[[#This Row],[Sort]]) -> 2020 | J188: =WEEKNUM(tCopiedWeightData[[#This Row],[Sort]],21) -> 4 | K188: =SUBTOTAL(1, $G182:$G188) -> 123.9428571
A189: 2020-01-28 | B189: Morgen | C189: 43858.25 | D189: 139 | E189: 87 | F189: 71 | G189: 124.5 | I189: =YEAR(tCopiedWeightData[[#This Row],[Sort]]) -> 2020 | J189: =WEEKNUM(tCopiedWeightData[[#This Row],[Sort]],21) -> 5
A190: 2020-01-29 | B190: Morgen | C190: 43859.25 | D190: 128 | E190: 84 | F190: 82 | G190: 123 | I190: =YEAR(tCopiedWeightData[[#This Row],[Sort]]) -> 2020 | J190: =WEEKNUM(tCopiedWeightData[[#This Row],[Sort]],21) -> 5
A191: 2020-01-30 | B191: Morgen | C191: 43860.25 | D191: 128 | E191: 89 | F191: 84 | G191: 123.4 | I191: =YEAR(tCopiedWeightData[[#This Row],[Sort]]) -> 2020 | J191: =WEEKNUM(tCopiedWeightData[[#This Row],[Sort]],21) -> 5
A192: 2020-01-31 | B192: Morgen | C192: 43861.25 | D192: 130 | E192: 91 | F192: 80 | G192: 123.8 | I192: =YEAR(tCopiedWeightData[[#This Row],[Sort]]) -> 2020 | J192: =WEEKNUM(tCopiedWeightData[[#This Row],[Sort]],21) -> 5
A193: 2020-02-01 | B193: Morgen | C193: 43862.25 | D193: 124 | E193: 78 | F193: 81 | G193: 124.4 | I193: =YEAR(tCopiedWeightData[[#This Row],[Sort]]) -> 2020 | J193: =WEEKNUM(tCopiedWeightData[[#This Row],[Sort]],21) -> 5
A194: 2020-02-02 | B194: Morgen | C194: 43863.25 | D194: 138 | E194: 86 | F194: 74 | G194: 124 | I194: =YEAR(tCopiedWeightData[[#This Row],[Sort]]) -> 2020 | J194: =WEEKNUM(tCopiedWeightData[[#This Row],[Sort]],21) -> 5 | K194: =SUBTOTAL(1, $G189:$G194) -> 123.85
A195: 2020-02-03 | B195: Morgen | C195: 43864.25 | D195: 120 | E195: 84 | F195: 78 | G195: 124.6 | I195: =YEAR(tCopiedWeightData[[#This Row],[Sort]]) -> 2020 | J195: =WEEKNUM(tCopiedWeightData[[#This Row],[Sort]],21) -> 6
A196: 2020-02-05 | B196: Morgen | C196: 43866.25 | D196: 118 | E196: 85 | F196: 80 | G196: 124.8 | I196: =YEAR(tCopiedWeightData[[#This Row],[Sort]]) -> 2020 | J196: =WEEKNUM(tCopiedWeightData[[#This Row],[Sort]],21) -> 6
A197: 2020-02-06 | B197: Morgen | C197: 43867.25 | D197: 121 | E197: 94 | F197: 83 | G197: 124.2 | I197: =YEAR(tCopiedWeightData[[#This Row],[Sort]]) -> 2020 | J197: =WEEKNUM(tCopiedWeightData[[#This Row],[Sort]],21) -> 6
A198: 2020-02-07 | B198: Morgen | C198: 43868.25 | D198: 112 | E198: 77 | F198: 79 | G198: 124.3 | I198: =YEAR(tCopiedWeightData[[#This Row],[Sort]]) -> 2020 | J198: =WEEKNUM(tCopiedWeightData[[#This Row],[Sort]],21) -> 6
A199: 2020-02-08 | B199: Morgen | C199: 43869.25 | D199: 118 | E199: 77 | F199: 76 | G199: 124.5 | I199: =YEAR(tCopiedWeightData[[#This Row],[Sort]]) -> 2020 | J199: =WEEKNUM(tCopiedWeightData[[#This Row],[Sort]],21) -> 6
A200: 2020-02-09 | B200: Morgen | C200: 43870.25 | D200: 133 | E200: 94 | F200: 79 | G200: 124.5 | I200: =YEAR(tCopiedWeightData[[#This Row],[Sort]]) -> 2020 | J200: =WEEKNUM(tCopiedWeightData[[#This Row],[Sort]],21) -> 6 | K200: =SUBTOTAL(1, $G195:$G200) -> 124.4833333
A201: 2020-02-10 | B201: Morgen | C201: 43871.25 | D201: 133 | E201: 92 | F201: 86 | G201: 124.4 | I201: =YEAR(tCopiedWeightData[[#This Row],[Sort]]) -> 2020 | J201: =WEEKNUM(tCopiedWeightData[[#This Row],[Sort]],21) -> 7
A202: 2020-02-11 | B202: Morgen | C202: 43872.25 | D202: 131 | E202: 99 | F202: 78 | G202: 124.2 | I202: =YEAR(tCopiedWeightData[[#This Row],[Sort]]) -> 2020 | J202: =WEEKNUM(tCopiedWeightData[[#This Row],[Sort]],21) -> 7
A203: 2020-02-12 | B203: Morgen | C203: 43873.25 | D203: 115 | E203: 80 | F203: 67 | G203: 124.3 | I203: =YEAR(tCopiedWeightData[[#This Row],[Sort]]) -> 2020 | J203: =WEEKNUM(tCopiedWeightData[[#This Row],[Sort]],21) -> 7
A204: 2020-02-13 | B204: Morgen | C204: 43874.25 | D204: 123 | E204: 84 | F204: 78 | G204: 124 | I204: =YEAR(tCopiedWeightData[[#This Row],[Sort]]) -> 2020 | J204: =WEEKNUM(tCopiedWeightData[[#This Row],[Sort]],21) -> 7
A205: 2020-02-14 | B205: Morgen | C205: 43875.25 | D205: 120 | E205: 76 | F205: 78 | G205: 124.2 | I205: =YEAR(tCopiedWeightData[[#This Row],[Sort]]) -> 2020 | J205: =WEEKNUM(tCopiedWeightData[[#This Row],[Sort]],21) -> 7
A206: 2020-02-15 | B206: Morgen | C206: 43876.25 | D206: 129 | E206: 82 | F206: 88 | G206: 123.6 | I206: =YEAR(tCopiedWeightData[[#This Row],[Sort]]) -> 2020 | J206: =WEEKNUM(tCopiedWeightData[[#This Row],[Sort]],21) -> 7
A207: 2020-02-16 | B207: Morgen | C207: 43877.25 | D207: 129 | E207: 93 | F207: 80 | G207: 124.5 | I207: =YEAR(tCopiedWeightData[[#This Row],[Sort]]) -> 2020 | J207: =WEEKNUM(tCopiedWeightData[[#This Row],[Sort]],21) -> 7 | K207: =SUBTOTAL(1, $G201:$G207) -> 124.1714286
A208: 2020-02-18 | B208: Morgen | C208: 43879.25 | D208: 112 | E208: 82 | F208: 75 | G208: 124.2 | I208: =YEAR(tCopiedWeightData[[#This Row],[Sort]]) -> 2020 | J208: =WEEKNUM(tCopiedWeightData[[#This Row],[Sort]],21) -> 8
A209: 2020-02-19 | B209: Morgen | C209: 43880.25 | D209: 124 | E209: 86 | F209: 86 | G209: 124.1 | I209: =YEAR(tCopiedWeightData[[#This Row],[Sort]]) -> 2020 | J209: =WEEKNUM(tCopiedWeightData[[#This Row],[Sort]],21) -> 8
A210: 2020-02-20 | B210: Morgen | C210: 43881.25 | D210: 128 | E210: 88 | F210: 84 | G210: 123.8 | I210: =YEAR(tCopiedWeightData[[#This Row],[Sort]]) -> 2020 | J210: =WEEKNUM(tCopiedWeightData[[#This Row],[Sort]],21) -> 8
A211: 2020-02-21 | B211: Morgen | C211: 43882.25 | D211: 111 | E211: 83 | F211: 93 | G211: 124.3 | I211: =YEAR(tCopiedWeightData[[#This Row],[Sort]]) -> 2020 | J211: =WEEKNUM(tCopiedWeightData[[#This Row],[Sort]],21) -> 8
A212: 2020-02-22 | B212: Morgen | C212: 43883.25 | D212: 111 | E212: 81 | F212: 79 | G212: 124.5 | I212: =YEAR(tCopiedWeightData[[#This Row],[Sort]]) -> 2020 | J212: =WEEKNUM(tCopiedWeightData[[#This Row],[Sort]],21) -> 8
A213: 2020-02-23 | B213: Morgen | C213: 43884.25 | D213: 117 | E213: 96 | F213: 79 | G213: 124.5 | I213: =YEAR(tCopiedWeightData[[#This Row],[Sort]]) -> 2020 | J213: =WEEKNUM(tCopiedWeightData[[#This Row],[Sort]],21) -> 8 | K213: =SUBTOTAL(1, $G208:$G213) -> 124.2333333
... 121 more rows

Sheet Report_Weight (hidden)
A1: Gewichtskurve
A3: Startdatum: | B3: 2019-10-23 | D3: Ausgangsgewicht: | E3: 131.8 | F3: kg | G3: Aktuelles Gewicht: | H3: 120.6 | I3: kg
K4: Tag | L4: Veränd_neg | M4: Veränd_pos | N4: Veränderung | O4: Gewicht
K5: 2019-10-19 | L5: 0 | N5: 0 | O5: 131.8 | R5: 2019-10-19 | S5: 43757.25 | W5: 131.8
K6: 2019-10-25 | L6: -0.8 | N6: =tWeightDaily[[#This Row],[Gewicht]]-Ausgangsgewicht -> -0.8 | O6: 131 | R6: 2019-10-25 | S6: 43763.25 | W6: 131
K7: 2019-10-26 | L7: -0.9 | M7: -0.9 | N7: =tWeightDaily[[#This Row],[Gewicht]]-Ausgangsgewicht -> -0.9 | O7: 130.9 | R7: 2019-10-26 | S7: 43764.25 | W7: 130.9
K8: 2019-10-27 | L8: -0.3 | M8: -0.3 | N8: =tWeightDaily[[#This Row],[Gewicht]]-Ausgangsgewicht -> -0.3 | O8: 131.5 | R8: 2019-10-27 | S8: 43765.25 | W8: 131.5
K9: 2019-10-28 | L9: -0.6 | N9: =tWeightDaily[[#This Row],[Gewicht]]-Ausgangsgewicht -> -0.6 | O9: 131.2 | R9: 2019-10-28 | S9: 43766.25 | W9: 131.2
K10: 2019-10-29 | L10: -0.7 | N10: =tWeightDaily[[#This Row],[Gewicht]]-Ausgangsgewicht -> -0.7 | O10: 131.1 | R10: 2019-10-29 | S10: 43767.25 | W10: 131.1
K11: 2019-10-30 | L11: -1.5 | M11: -1.5 | N11: =tWeightDaily[[#This Row],[Gewicht]]-Ausgangsgewicht -> -1.5 | O11: 130.3 | R11: 2019-10-30 | S11: 43768.25 | W11: 130.3
K12: 2019-10-31 | M12: -1.4 | N12: =tWeightDaily[[#This Row],[Gewicht]]-Ausgangsgewicht -> -1.4 | O12: 130.4 | R12: 2019-10-31 | S12: 43769.25 | W12: 130.4
K13: 2019-11-01 | L13: -0.4 | M13: -0.4 | N13: =tWeightDaily[[#This Row],[Gewicht]]-Ausgangsgewicht -> -0.4 | O13: 131.4 | R13: 2019-11-01 | S13: 43770.25 | W13: 131.4
K14: 2019-11-02 | L14: -0.7 | M14: -0.7 | N14: =tWeightDaily[[#This Row],[Gewicht]]-Ausgangsgewicht -> -0.7 | O14: 131.1 | R14: 2019-11-02 | S14: 43771.25 | W14: 131.1
K15: 2019-11-03 | L15: 0 | M15: 0 | N15: =tWeightDaily[[#This Row],[Gewicht]]-Ausgangsgewicht -> 0 | O15: 131.8 | R15: 2019-11-03 | S15: 43772.25 | W15: 131.8
K16: 2019-11-04 | L16: -0.7 | M16: -0.7 | N16: =tWeightDaily[[#This Row],[Gewicht]]-Ausgangsgewicht -> -0.7 | O16: 131.1 | R16: 2019-11-04 | S16: 43773.25 | W16: 131.1
K17: 2019-11-05 | L17: -0.5 | M17: -0.5 | N17: =tWeightDaily[[#This Row],[Gewicht]]-Ausgangsgewicht -> -0.5 | O17: 131.3 | R17: 2019-11-05 | S17: 43774.25 | W17: 131.3
K18: 2019-11-06 | L18: -0.6 | N18: =tWeightDaily[[#This Row],[Gewicht]]-Ausgangsgewicht -> -0.6 | O18: 131.2 | R18: 2019-11-06 | S18: 43775.25 | W18: 131.2
K19: 2019-11-08 | L19: -0.9 | M19: -0.9 | N19: =tWeightDaily[[#This Row],[Gewicht]]-Ausgangsgewicht -> -0.9 | O19: 130.9 | R19: 2019-11-08 | S19: 43777.25 | W19: 130.9
K20: 2019-11-09 | L20: -0.7 | M20: -0.7 | N20: =tWeightDaily[[#This Row],[Gewicht]]-Ausgangsgewicht -> -0.7 | O20: 131.1 | R20: 2019-11-09 | S20: 43778.25 | W20: 131.1
K21: 2019-11-10 | L21: -1.4 | M21: -1.4 | N21: =tWeightDaily[[#This Row],[Gewicht]]-Ausgangsgewicht -> -1.4 | O21: 130.4 | R21: 2019-11-10 | S21: 43779.25 | W21: 130.4
K22: 2019-11-11 | M22: -1.2 | N22: =tWeightDaily[[#This Row],[Gewicht]]-Ausgangsgewicht -> -1.2 | O22: 130.6 | R22: 2019-11-11 | S22: 43780.25 | W22: 130.6
K23: 2019-11-12 | L23: -0.7 | M23: -0.7 | N23: =tWeightDaily[[#This Row],[Gewicht]]-Ausgangsgewicht -> -0.7 | O23: 131.1 | R23: 2019-11-12 | S23: 43781.25 | W23: 131.1
K24: 2019-11-13 | L24: -1.1 | N24: =tWeightDaily[[#This Row],[Gewicht]]-Ausgangsgewicht -> -1.1 | O24: 130.7 | R24: 2019-11-13 | S24: 43782.25 | W24: 130.7
K25: 2019-11-14 | L25: -1.3 | M25: -1.3 | N25: =tWeightDaily[[#This Row],[Gewicht]]-Ausgangsgewicht -> -1.3 | O25: 130.5 | R25: 2019-11-14 | S25: 43783.25 | W25: 130.5
K26: 2019-11-15 | L26: -0.6 | M26: -0.6 | N26: =tWeightDaily[[#This Row],[Gewicht]]-Ausgangsgewicht -> -0.6 | O26: 131.2 | R26: 2019-11-15 | S26: 43784.25 | W26: 131.2
K27: 2019-11-16 | L27: -1 | N27: =tWeightDaily[[#This Row],[Gewicht]]-Ausgangsgewicht -> -1 | O27: 130.8 | R27: 2019-11-16 | S27: 43785.25 | W27: 130.8
K28: 2019-11-17 | L28: -1.3 | N28: =tWeightDaily[[#This Row],[Gewicht]]-Ausgangsgewicht -> -1.3 | O28: 130.5 | R28: 2019-11-17 | S28: 43786.25 | W28: 130.5
K29: 2019-11-18 | L29: -1.8 | M29: -1.8 | N29: =tWeightDaily[[#This Row],[Gewicht]]-Ausgangsgewicht -> -1.8 | O29: 130 | R29: 2019-11-18 | S29: 43787.25 | W29: 130
K30: 2019-11-19 | M30: -1.7 | N30: =tWeightDaily[[#This Row],[Gewicht]]-Ausgangsgewicht -> -1.7 | O30: 130.1 | R30: 2019-11-19 | S30: 43788.25 | W30: 130.1
K31: 2019-11-20 | L31: -1.2 | M31: -1.2 | N31: =tWeightDaily[[#This Row],[Gewicht]]-Ausgangsgewicht -> -1.2 | O31: 130.6 | R31: 2019-11-20 | S31: 43789.25 | W31: 130.6
K32: 2019-11-21 | L32: -1.7 | M32: -1.7 | N32: =tWeightDaily[[#This Row],[Gewicht]]-Ausgangsgewicht -> -1.7 | O32: 130.1 | R32: 2019-11-21 | S32: 43790.25 | W32: 130.1
K33: 2019-11-22 | L33: -0.3 | M33: -0.3 | N33: =tWeightDaily[[#This Row],[Gewicht]]-Ausgangsgewicht -> -0.3 | O33: 131.5 | R33: 2019-11-22 | S33: 43791.25 | W33: 131.5
K34: 2019-11-23 | L34: -1.5 | N34: =tWeightDaily[[#This Row],[Gewicht]]-Ausgangsgewicht -> -1.5 | O34: 130.3 | R34: 2019-11-23 | S34: 43792.25 | W34: 130.3
K35: 2019-11-24 | L35: -1.8 | N35: =tWeightDaily[[#This Row],[Gewicht]]-Ausgangsgewicht -> -1.8 | O35: 130 | R35: 2019-11-24 | S35: 43793.25 | W35: 130
K36: 2019-11-25 | L36: -2.1 | M36: -2.1 | N36: =tWeightDaily[[#This Row],[Gewicht]]-Ausgangsgewicht -> -2.1 | O36: 129.7 | R36: 2019-11-25 | S36: 43794.25 | W36: 129.7
K37: 2019-11-26 | L37: -1.2 | M37: -1.2 | N37: =tWeightDaily[[#This Row],[Gewicht]]-Ausgangsgewicht -> -1.2 | O37: 130.6 | R37: 2019-11-26 | S37: 43795.25 | W37: 130.6
K38: 2019-11-27 | L38: -1.3 | N38: =tWeightDaily[[#This Row],[Gewicht]]-Ausgangsgewicht -> -1.3 | O38: 130.5 | R38: 2019-11-27 | S38: 43796.25 | W38: 130.5
K39: 2019-11-28 | L39: -2.4 | M39: -2.4 | N39: =tWeightDaily[[#This Row],[Gewicht]]-Ausgangsgewicht -> -2.4 | O39: 129.4 | R39: 2019-11-28 | S39: 43797.25 | W39: 129.4
K40: 2019-11-29 | L40: -1.6 | M40: -1.6 | N40: =tWeightDaily[[#This Row],[Gewicht]]-Ausgangsgewicht -> -1.6 | O40: 130.2 | R40: 2019-11-29 | S40: 43798.25 | W40: 130.2
K41: 2019-11-30 | L41: -1.9 | N41: =tWeightDaily[[#This Row],[Gewicht]]-Ausgangsgewicht -> -1.9 | O41: 129.9 | R41: 2019-11-30 | S41: 43799.25 | W41: 129.9
K42: 2019-12-01 | L42: -1.9 | N42: =tWeightDaily[[#This Row],[Gewicht]]-Ausgangsgewicht -> -1.9 | O42: 129.9 | R42: 2019-12-01 | S42: 43800.25 | W42: 129.9
K43: 2019-12-02 | L43: -2.1 | N43: =tWeightDaily[[#This Row],[Gewicht]]-Ausgangsgewicht -> -2.1 | O43: 129.7 | R43: 2019-12-02 | S43: 43801.25 | W43: 129.7
K44: 2019-12-03 | L44: -2.2 | M44: -2.2 | N44: =tWeightDaily[[#This Row],[Gewicht]]-Ausgangsgewicht -> -2.2 | O44: 129.6 | R44: 2019-12-03 | S44: 43802.25 | W44: 129.6
K45: 2019-12-04 | L45: -0.8 | M45: -0.8 | N45: =tWeightDaily[[#This Row],[Gewicht]]-Ausgangsgewicht -> -0.8 | O45: 131 | R45: 2019-12-04 | S45: 43803.25 | W45: 131
K46: 2019-12-05 | L46: -2.1 | N46: =tWeightDaily[[#This Row],[Gewicht]]-Ausgangsgewicht -> -2.1 | O46: 129.7 | R46: 2019-12-05 | S46: 43804.25 | W46: 129.7
K47: 2019-12-06 | L47: -2.8 | N47: =tWeightDaily[[#This Row],[Gewicht]]-Ausgangsgewicht -> -2.8 | O47: 129 | R47: 2019-12-06 | S47: 43805.25 | W47: 129
K48: 2019-12-07 | L48: -2.8 | N48: =tWeightDaily[[#This Row],[Gewicht]]-Ausgangsgewicht -> -2.8 | O48: 129 | R48: 2019-12-07 | S48: 43806.25 | W48: 129
K49: 2019-12-08 | L49: -3.6 | M49: -3.6 | N49: =tWeightDaily[[#This Row],[Gewicht]]-Ausgangsgewicht -> -3.6 | O49: 128.2 | R49: 2019-12-08 | S49: 43807.25 | W49: 128.2
K50: 2019-12-09 | M50: -2.2 | N50: =tWeightDaily[[#This Row],[Gewicht]]-Ausgangsgewicht -> -2.2 | O50: 129.6 | R50: 2019-12-09 | S50: 43808.25 | W50: 129.6
K51: 2019-12-10 | M51: -1.9 | N51: =tWeightDaily[[#This Row],[Gewicht]]-Ausgangsgewicht -> -1.9 | O51: 129.9 | R51: 2019-12-10 | S51: 43809.25 | W51: 129.9
K52: 2019-12-11 | L52: -1.2 | M52: -1.2 | N52: =tWeightDaily[[#This Row],[Gewicht]]-Ausgangsgewicht -> -1.2 | O52: 130.6 | R52: 2019-12-11 | S52: 43810.25 | W52: 130.6
K53: 2019-12-12 | L53: -2.7 | M53: -2.7 | N53: =tWeightDaily[[#This Row],[Gewicht]]-Ausgangsgewicht -> -2.7 | O53: 129.1 | R53: 2019-12-12 | S53: 43811.25 | W53: 129.1
K54: 2019-12-13 | L54: -2.3 | M54: -2.3 | N54: =tWeightDaily[[#This Row],[Gewicht]]-Ausgangsgewicht -> -2.3 | O54: 129.5 | R54: 2019-12-13 | S54: 43812.25 | W54: 129.5
K55: 2019-12-14 | L55: -3.1 | N55: =tWeightDaily[[#This Row],[Gewicht]]-Ausgangsgewicht -> -3.1 | O55: 128.7 | R55: 2019-12-14 | S55: 43813.25 | W55: 128.7
K56: 2019-12-15 | L56: -3.1 | M56: -3.1 | N56: =tWeightDaily[[#This Row],[Gewicht]]-Ausgangsgewicht -> -3.1 | O56: 128.7 | R56: 2019-12-15 | S56: 43814.25 | W56: 128.7
K57: 2019-12-17 | L57: -3 | M57: -3 | N57: =tWeightDaily[[#This Row],[Gewicht]]-Ausgangsgewicht -> -3 | O57: 128.8 | R57: 2019-12-17 | S57: 43816.25 | W57: 128.8
K58: 2019-12-18 | L58: -3.4 | N58: =tWeightDaily[[#This Row],[Gewicht]]-Ausgangsgewicht -> -3.4 | O58: 128.4 | R58: 2019-12-18 | S58: 43817.25 | W58: 128.4
K59: 2019-12-19 | L59: -3.8 | M59: -3.8 | N59: =tWeightDaily[[#This Row],[Gewicht]]-Ausgangsgewicht -> -3.8 | O59: 128 | R59: 2019-12-19 | S59: 43818.25 | W59: 128
K60: 2019-12-20 | L60: -3.5 | M60: -3.5 | N60: =tWeightDaily[[#This Row],[Gewicht]]-Ausgangsgewicht -> -3.5 | O60: 128.3 | R60: 2019-12-20 | S60: 43819.25 | W60: 128.3
K61: 2019-12-21 | L61: -3.5 | N61: =tWeightDaily[[#This Row],[Gewicht]]-Ausgangsgewicht -> -3.5 | O61: 128.3 | R61: 2019-12-21 | S61: 43820.25 | W61: 128.3
K62: 2019-12-22 | L62: -4.1 | M62: -4.1 | N62: =tWeightDaily[[#This Row],[Gewicht]]-Ausgangsgewicht -> -4.1 | O62: 127.7 | R62: 2019-12-22 | S62: 43821.25 | W62: 127.7
K63: 2019-12-23 | L63: -3.7 | M63: -3.7 | N63: =tWeightDaily[[#This Row],[Gewicht]]-Ausgangsgewicht -> -3.7 | O63: 128.1 | R63: 2019-12-23 | S63: 43822.25 | W63: 128.1
K64: 2019-12-24 | L64: -3.9 | M64: -3.9 | N64: =tWeightDaily[[#This Row],[Gewicht]]-Ausgangsgewicht -> -3.9 | O64: 127.9 | R64: 2019-12-24 | S64: 43823.25 | W64: 127.9
K65: 2019-12-25 | L65: -3.2 | M65: -3.2 | N65: =tWeightDaily[[#This Row],[Gewicht]]-Ausgangsgewicht -> -3.2 | O65: 128.6 | R65: 2019-12-25 | S65: 43824.25 | W65: 128.6
K66: 2019-12-26 | L66: -3.2 | N66: =tWeightDaily[[#This Row],[Gewicht]]-Ausgangsgewicht -> -3.2 | O66: 128.6 | R66: 2019-12-26 | S66: 43825.25 | W66: 128.6
K67: 2019-12-27 | L67: -3.2 | N67: =tWeightDaily[[#This Row],[Gewicht]]-Ausgangsgewicht -> -3.2 | O67: 128.6 | R67: 2019-12-27 | S67: 43826.25 | W67: 128.6
K68: 2019-12-28 | L68: -3.2 | N68: =tWeightDaily[[#This Row],[Gewicht]]-Ausgangsgewicht -> -3.2 | O68: 128.6 | R68: 2019-12-28 | S68: 43827.25 | W68: 128.6
K69: 2019-12-29 | L69: -3.3 | N69: =tWeightDaily[[#This Row],[Gewicht]]-Ausgangsgewicht -> -3.3 | O69: 128.5 | R69: 2019-12-29 | S69: 43828.25 | W69: 128.5
K70: 2019-12-30 | L70: -3.3 | N70: =tWeightDaily[[#This Row],[Gewicht]]-Ausgangsgewicht -> -3.3 | O70: 128.5 | R70: 2019-12-30 | S70: 43829.25 | W70: 128.5
K71: 2019-12-31 | L71: -3.4 | N71: =tWeightDaily[[#This Row],[Gewicht]]-Ausgangsgewicht -> -3.4 | O71: 128.4 | R71: 2019-12-31 | S71: 43830.25 | W71: 128.4
K72: 2020-01-01 | L72: -3.7 | N72: =tWeightDaily[[#This Row],[Gewicht]]-Ausgangsgewicht -> -3.7 | O72: 128.1 | R72: 2020-01-01 | S72: 43831.25 | W72: 128.1
K73: 2020-01-02 | L73: -3.9 | N73: =tWeightDaily[[#This Row],[Gewicht]]-Ausgangsgewicht -> -3.9 | O73: 127.9 | R73: 2020-01-02 | S73: 43832.25 | W73: 127.9
K74: 2020-01-03 | L74: -3.9 | N74: =tWeightDaily[[#This Row],[Gewicht]]-Ausgangsgewicht -> -3.9 | O74: 127.9 | R74: 2020-01-03 | S74: 43833.25 | W74: 127.9
K75: 2020-01-04 | L75: -4.3 | M75: -4.3 | N75: =tWeightDaily[[#This Row],[Gewicht]]-Ausgangsgewicht -> -4.3 | O75: 127.5 | R75: 2020-01-04 | S75: 43834.25 | W75: 127.5
K76: 2020-01-05 | L76: -4.1 | M76: -4.1 | N76: =tWeightDaily[[#This Row],[Gewicht]]-Ausgangsgewicht -> -4.1 | O76: 127.7 | R76: 2020-01-05 | S76: 43835.25 | W76: 127.7
K77: 2020-01-06 | L77: -4.9 | N77: =tWeightDaily[[#This Row],[Gewicht]]-Ausgangsgewicht -> -4.9 | O77: 126.9 | R77: 2020-01-06 | S77: 43836.25 | W77: 126.9
K78: 2020-01-07 | L78: -5.2 | N78: =tWeightDaily[[#This Row],[Gewicht]]-Ausgangsgewicht -> -5.2 | O78: 126.6 | R78: 2020-01-07 | S78: 43837.25 | W78: 126.6
K79: 2020-01-09 | L79: -6.1 | N79: =tWeightDaily[[#This Row],[Gewicht]]-Ausgangsgewicht -> -6.1 | O79: 125.7 | R79: 2020-01-09 | S79: 43839.25 | W79: 125.7
K80: 2020-01-10 | L80: -6.6 | M80: -6.6 | N80: =tWeightDaily[[#This Row],[Gewicht]]-Ausgangsgewicht -> -6.6 | O80: 125.2 | R80: 2020-01-10 | S80: 43840.25 | W80: 125.2
K81: 2020-01-11 | M81: -6 | N81: =tWeightDaily[[#This Row],[Gewicht]]-Ausgangsgewicht -> -6 | O81: 125.8 | R81: 2020-01-11 | S81: 43841.25 | W81: 125.8
K82: 2020-01-12 | L82: -5.7 | M82: -5.7 | N82: =tWeightDaily[[#This Row],[Gewicht]]-Ausgangsgewicht -> -5.7 | O82: 126.1 | R82: 2020-01-12 | S82: 43842.25 | W82: 126.1
K83: 2020-01-17 | L83: -7 | N83: =tWeightDaily[[#This Row],[Gewicht]]-Ausgangsgewicht -> -7 | O83: 124.8 | R83: 2020-01-17 | S83: 43847.25 | W83: 124.8
K84: 2020-01-18 | L84: -8 | N84: =tWeightDaily[[#This Row],[Gewicht]]-Ausgangsgewicht -> -8 | O84: 123.8 | R84: 2020-01-18 | S84: 43848.25 | W84: 123.8
K85: 2020-01-19 | L85: -8.4 | M85: -8.4 | N85: =tWeightDaily[[#This Row],[Gewicht]]-Ausgangsgewicht -> -8.4 | O85: 123.4 | R85: 2020-01-19 | S85: 43849.25 | W85: 123.4
K86: 2020-01-20 | L86: -7.3 | M86: -7.3 | N86: =tWeightDaily[[#This Row],[Gewicht]]-Ausgangsgewicht -> -7.3 | O86: 124.5 | R86: 2020-01-20 | S86: 43850.25 | W86: 124.5
K87: 2020-01-21 | L87: -7.5 | N87: =tWeightDaily[[#This Row],[Gewicht]]-Ausgangsgewicht -> -7.5 | O87: 124.3 | R87: 2020-01-21 | S87: 43851.25 | W87: 124.3
K88: 2020-01-22 | L88: -8.2 | N88: =tWeightDaily[[#This Row],[Gewicht]]-Ausgangsgewicht -> -8.2 | O88: 123.6 | R88: 2020-01-22 | S88: 43852.25 | W88: 123.6
K89: 2020-01-23 | L89: -8.4 | M89: -8.4 | N89: =tWeightDaily[[#This Row],[Gewicht]]-Ausgangsgewicht -> -8.4 | O89: 123.4 | R89: 2020-01-23 | S89: 43853.25 | W89: 123.4
K90: 2020-01-24 | L90: -8.2 | M90: -8.2 | N90: =tWeightDaily[[#This Row],[Gewicht]]-Ausgangsgewicht -> -8.2 | O90: 123.6 | R90: 2020-01-24 | S90: 43854.25 | W90: 123.6
K91: 2020-01-25 | L91: -8.2 | M91: -8.2 | N91: =tWeightDaily[[#This Row],[Gewicht]]-Ausgangsgewicht -> -8.2 | O91: 123.6 | R91: 2020-01-25 | S91: 43855.25 | W91: 123.6
K92: 2020-01-26 | L92: -7.2 | M92: -7.2 | N92: =tWeightDaily[[#This Row],[Gewicht]]-Ausgangsgewicht -> -7.2 | O92: 124.6 | R92: 2020-01-26 | S92: 43856.25 | W92: 124.6
K93: 2020-01-28 | L93: -7.3 | N93: =tWeightDaily[[#This Row],[Gewicht]]-Ausgangsgewicht -> -7.3 | O93: 124.5 | R93: 2020-01-28 | S93: 43858.25 | W93: 124.5
K94: 2020-01-29 | L94: -8.8 | M94: -8.8 | N94: =tWeightDaily[[#This Row],[Gewicht]]-Ausgangsgewicht -> -8.8 | O94: 123 | R94: 2020-01-29 | S94: 43859.25 | W94: 123
K95: 2020-01-30 | M95: -8.4 | N95: =tWeightDaily[[#This Row],[Gewicht]]-Ausgangsgewicht -> -8.4 | O95: 123.4 | R95: 2020-01-30 | S95: 43860.25 | W95: 123.4
K96: 2020-01-31 | M96: -8 | N96: =tWeightDaily[[#This Row],[Gewicht]]-Ausgangsgewicht -> -8 | O96: 123.8 | R96: 2020-01-31 | S96: 43861.25 | W96: 123.8
K97: 2020-02-01 | L97: -7.4 | M97: -7.4 | N97: =tWeightDaily[[#This Row],[Gewicht]]-Ausgangsgewicht -> -7.4 | O97: 124.4 | R97: 2020-02-01 | S97: 43862.25 | W97: 124.4
K98: 2020-02-02 | L98: -7.8 | M98: -7.8 | N98: =tWeightDaily[[#This Row],[Gewicht]]-Ausgangsgewicht -> -7.8 | O98: 124 | R98: 2020-02-02 | S98: 43863.25 | W98: 124
K99: 2020-02-03 | M99: -7.2 | N99: =tWeightDaily[[#This Row],[Gewicht]]-Ausgangsgewicht -> -7.2 | O99: 124.6 | R99: 2020-02-03 | S99: 43864.25 | W99: 124.6
K100: 2020-02-05 | L100: -7 | M100: -7 | N100: =tWeightDaily[[#This Row],[Gewicht]]-Ausgangsgewicht -> -7 | O100: 124.8 | R100: 2020-02-05 | S100: 43866.25 | W100: 124.8
K101: 2020-02-06 | L101: -7.6 | M101: -7.6 | N101: =tWeightDaily[[#This Row],[Gewicht]]-Ausgangsgewicht -> -7.6 | O101: 124.2 | R101: 2020-02-06 | S101: 43867.25 | W101: 124.2
K102: 2020-02-07 | M102: -7.5 | N102: =tWeightDaily[[#This Row],[Gewicht]]-Ausgangsgewicht -> -7.5 | O102: 124.3 | R102: 2020-02-07 | S102: 43868.25 | W102: 124.3
K103: 2020-02-08 | L103: -7.3 | M103: -7.3 | N103: =tWeightDaily[[#This Row],[Gewicht]]-Ausgangsgewicht -> -7.3 | O103: 124.5 | R103: 2020-02-08 | S103: 43869.25 | W103: 124.5
K104: 2020-02-09 | L104: -7.3 | N104: =tWeightDaily[[#This Row],[Gewicht]]-Ausgangsgewicht -> -7.3 | O104: 124.5 | R104: 2020-02-09 | S104: 43870.25 | W104: 124.5
K105: 2020-02-10 | L105: -7.4 | N105: =tWeightDaily[[#This Row],[Gewicht]]-Ausgangsgewicht -> -7.4 | O105: 124.4 | R105: 2020-02-10 | S105: 43871.25 | W105: 124.4
K106: 2020-02-11 | L106: -7.6 | M106: -7.6 | N106: =tWeightDaily[[#This Row],[Gewicht]]-Ausgangsgewicht -> -7.6 | O106: 124.2 | R106: 2020-02-11 | S106: 43872.25 | W106: 124.2
K107: 2020-02-12 | L107: -7.5 | M107: -7.5 | N107: =tWeightDaily[[#This Row],[Gewicht]]-Ausgangsgewicht -> -7.5 | O107: 124.3 | R107: 2020-02-12 | S107: 43873.25 | W107: 124.3
K108: 2020-02-13 | L108: -7.8 | M108: -7.8 | N108: =tWeightDaily[[#This Row],[Gewicht]]-Ausgangsgewicht -> -7.8 | O108: 124 | R108: 2020-02-13 | S108: 43874.25 | W108: 124
K109: 2020-02-14 | L109: -7.6 | M109: -7.6 | N109: =tWeightDaily[[#This Row],[Gewicht]]-Ausgangsgewicht -> -7.6 | O109: 124.2 | R109: 2020-02-14 | S109: 43875.25 | W109: 124.2
K110: 2020-02-15 | L110: -8.2 | M110: -8.2 | N110: =tWeightDaily[[#This Row],[Gewicht]]-Ausgangsgewicht -> -8.2 | O110: 123.6 | R110: 2020-02-15 | S110: 43876.25 | W110: 123.6
K111: 2020-02-16 | L111: -7.3 | M111: -7.3 | N111: =tWeightDaily[[#This Row],[Gewicht]]-Ausgangsgewicht -> -7.3 | O111: 124.5 | R111: 2020-02-16 | S111: 43877.25 | W111: 124.5
K112: 2020-02-18 | L112: -7.6 | N112: =tWeightDaily[[#This Row],[Gewicht]]-Ausgangsgewicht -> -7.6 | O112: 124.2 | R112: 2020-02-18 | S112: 43879.25 | W112: 124.2
K113: 2020-02-19 | L113: -7.7 | N113: =tWeightDaily[[#This Row],[Gewicht]]-Ausgangsgewicht -> -7.7 | O113: 124.1 | R113: 2020-02-19 | S113: 43880.25 | W113: 124.1
K114: 2020-02-20 | L114: -8 | M114: -8 | N114: =tWeightDaily[[#This Row],[Gewicht]]-Ausgangsgewicht -> -8 | O114: 123.8 | R114: 2020-02-20 | S114: 43881.25 | W114: 123.8
K115: 2020-02-21 | M115: -7.5 | N115: =tWeightDaily[[#This Row],[Gewicht]]-Ausgangsgewicht -> -7.5 | O115: 124.3 | R115: 2020-02-21 | S115: 43882.25 | W115: 124.3
K116: 2020-02-22 | L116: -7.3 | M116: -7.3 | N116: =tWeightDaily[[#This Row],[Gewicht]]-Ausgangsgewicht -> -7.3 | O116: 124.5 | R116: 2020-02-22 | S116: 43883.25 | W116: 124.5
K117: 2020-02-23 | L117: -7.3 | N117: =tWeightDaily[[#This Row],[Gewicht]]-Ausgangsgewicht -> -7.3 | O117: 124.5 | R117: 2020-02-23 | S117: 43884.25 | W117: 124.5
K118: 2020-02-24 | L118: -7.3 | M118: -7.3 | N118: =tWeightDaily[[#This Row],[Gewicht]]-Ausgangsgewicht -> -7.3 | O118: 124.5 | R118: 2020-02-24 | S118: 43885.25 | W118: 124.5
K119: 2020-02-25 | L119: -7.1 | M119: -7.1 | N119: =tWeightDaily[[#This Row],[Gewicht]]-Ausgangsgewicht -> -7.1 | O119: 124.7 | R119: 2020-02-25 | S119: 43886.25 | W119: 124.7
K120: 2020-02-26 | L120: -8 | N120: =tWeightDaily[[#This Row],[Gewicht]]-Ausgangsgewicht -> -8 | O120: 123.8 | R120: 2020-02-26 | S120: 43887.25 | W120: 123.8
K121: 2020-02-27 | L121: -8.5 | N121: =tWeightDaily[[#This Row],[Gewicht]]-Ausgangsgewicht -> -8.5 | O121: 123.3 | R121: 2020-02-27 | S121: 43888.25 | W121: 123.3
K122: 2020-02-28 | L122: -8.7 | M122: -8.7 | N122: =tWeightDaily[[#This Row],[Gewicht]]-Ausgangsgewicht -> -8.7 | O122: 123.1 | R122: 2020-02-28 | S122: 43889.25 | W122: 123.1
K123: 2020-02-29 | L123: -8.5 | M123: -8.5 | N123: =tWeightDaily[[#This Row],[Gewicht]]-Ausgangsgewicht -> -8.5 | O123: 123.3 | R123: 2020-02-29 | S123: 43890.25 | W123: 123.3
K124: 2020-03-01 | L124: -8.8 | M124: -8.8 | N124: =tWeightDaily[[#This Row],[Gewicht]]-Ausgangsgewicht -> -8.8 | O124: 123 | R124: 2020-03-01 | S124: 43891.25 | W124: 123
K125: 2020-03-04 | L125: -7.5 | M125: -7.5 | N125: =tWeightDaily[[#This Row],[Gewicht]]-Ausgangsgewicht -> -7.5 | O125: 124.3 | R125: 2020-03-04 | S125: 43894.25 | W125: 124.3
K126: 2020-03-05 | L126: -8.2 | N126: =tWeightDaily[[#This Row],[Gewicht]]-Ausgangsgewicht -> -8.2 | O126: 123.6 | R126: 2020-03-05 | S126: 43895.25 | W126: 123.6
K127: 2020-03-06 | L127: -8.2 | M127: -8.2 | N127: =tWeightDaily[[#This Row],[Gewicht]]-Ausgangsgewicht -> -8.2 | O127: 123.6 | R127: 2020-03-06 | S127: 43896.25 | W127: 123.6
K128: 2020-03-07 | L128: -7.8 | M128: -7.8 | N128: =tWeightDaily[[#This Row],[Gewicht]]-Ausgangsgewicht -> -7.8 | O128: 124 | R128: 2020-03-07 | S128: 43897.25 | W128: 124
K129: 2020-03-08 | L129: -7.9 | N129: =tWeightDaily[[#This Row],[Gewicht]]-Ausgangsgewicht -> -7.9 | O129: 123.9 | R129: 2020-03-08 | S129: 43898.25 | W129: 123.9
K130: 2020-03-09 | L130: -7.9 | M130: -7.9 | N130: =tWeightDaily[[#This Row],[Gewicht]]-Ausgangsgewicht -> -7.9 | O130: 123.9 | R130: 2020-03-09 | S130: 43899.25 | W130: 123.9
K131: 2020-03-10 | L131: -6.9 | M131: -6.9 | N131: =tWeightDaily[[#This Row],[Gewicht]]-Ausgangsgewicht -> -6.9 | O131: 124.9 | R131: 2020-03-10 | S131: 43900.25 | W131: 124.9
K132: 2020-03-11 | L132: -8.5 | M132: -8.5 | N132: =tWeightDaily[[#This Row],[Gewicht]]-Ausgangsgewicht -> -8.5 | O132: 123.3 | R132: 2020-03-11 | S132: 43901.25 | W132: 123.3
K133: 2020-03-14 | L133: -7.6 | M133: -7.6 | N133: =tWeightDaily[[#This Row],[Gewicht]]-Ausgangsgewicht -> -7.6 | O133: 124.2 | R133: 2020-03-14 | S133: 43904.25 | W133: 124.2
K134: 2020-03-15 | L134: -8.9 | M134: -8.9 | N134: =tWeightDaily[[#This Row],[Gewicht]]-Ausgangsgewicht -> -8.9 | O134: 122.9 | R134: 2020-03-15 | S134: 43905.25 | W134: 122.9
K135: 2020-03-16 | L135: -7.8 | M135: -7.8 | N135: =tWeightDaily[[#This Row],[Gewicht]]-Ausgangsgewicht -> -7.8 | O135: 124 | R135: 2020-03-16 | S135: 43906.25 | W135: 124
K136: 2020-03-17 | L136: -8.1 | N136: =tWeightDaily[[#This Row],[Gewicht]]-Ausgangsgewicht -> -8.1 | O136: 123.7 | R136: 2020-03-17 | S136: 43907.25 | W136: 123.7
K137: 2020-03-18 | L137: -9.5 | M137: -9.5 | N137: =tWeightDaily[[#This Row],[Gewicht]]-Ausgangsgewicht -> -9.5 | O137: 122.3 | R137: 2020-03-18 | S137: 43908.25 | W137: 122.3
K138: 2020-03-19 | L138: -8.8 | M138: -8.8 | N138: =tWeightDaily[[#This Row],[Gewicht]]-Ausgangsgewicht -> -8.8 | O138: 123 | R138: 2020-03-19 | S138: 43909.25 | W138: 123
K139: 2020-03-20 | L139: -8.9 | N139: =tWeightDaily[[#This Row],[Gewicht]]-Ausgangsgewicht -> -8.9 | O139: 122.9 | R139: 2020-03-20 | S139: 43910.25 | W139: 122.9
K140: 2020-03-21 | L140: -8.9 | N140: =tWeightDaily[[#This Row],[Gewicht]]-Ausgangsgewicht -> -8.9 | O140: 122.9 | R140: 2020-03-21 | S140: 43911.25 | W140: 122.9
K141: 2020-03-22 | L141: -8.9 | N141: =tWeightDaily[[#This Row],[Gewicht]]-Ausgangsgewicht -> -8.9 | O141: 122.9 | R141: 2020-03-22 | S141: 43912.25 | W141: 122.9
K142: 2020-03-23 | L142: -9.2 | M142: -9.2 | N142: =tWeightDaily[[#This Row],[Gewicht]]-Ausgangsgewicht -> -9.2 | O142: 122.6 | R142: 2020-03-23 | S142: 43913.25 | W142: 122.6
K143: 2020-03-25 | L143: -9 | M143: -9 | N143: =tWeightDaily[[#This Row],[Gewicht]]-Ausgangsgewicht -> -9 | O143: 122.8 | R143: 2020-03-25 | S143: 43915.25 | W143: 122.8
K144: 2020-03-26 | L144: -9.1 | N144: =tWeightDaily[[#This Row],[Gewicht]]-Ausgangsgewicht -> -9.1 | O144: 122.7 | R144: 2020-03-26 | S144: 43916.25 | W144: 122.7
K145: 2020-03-27 | L145: -9.2 | M145: -9.2 | N145: =tWeightDaily[[#This Row],[Gewicht]]-Ausgangsgewicht -> -9.2 | O145: 122.6 | R145: 2020-03-27 | S145: 43917.25 | W145: 122.6
K146: 2020-03-28 | L146: -8.6 | M146: -8.6 | N146: =tWeightDaily[[#This Row],[Gewicht]]-Ausgangsgewicht -> -8.6 | O146: 123.2 | R146: 2020-03-28 | S146: 43918.25 | W146: 123.2
K147: 2020-03-29 | L147: -8.6 | M147: -8.6 | N147: =tWeightDaily[[#This Row],[Gewicht]]-Ausgangsgewicht -> -8.6 | O147: 123.2 | R147: 2020-03-29 | S147: 43919.25 | W147: 123.2
K148: 2020-03-31 | L148: -8.3 | M148: -8.3 | N148: =tWeightDaily[[#This Row],[Gewicht]]-Ausgangsgewicht -> -8.3 | O148: 123.5 | R148: 2020-03-31 | S148: 43921.25 | W148: 123.5
K149: 2020-04-01 | L149: -8.5 | N149: =tWeightDaily[[#This Row],[Gewicht]]-Ausgangsgewicht -> -8.5 | O149: 123.3 | R149: 2020-04-01 | S149: 43922.25 | W149: 123.3
K150: 2020-04-02 | L150: -8.8 | N150: =tWeightDaily[[#This Row],[Gewicht]]-Ausgangsgewicht -> -8.8 | O150: 123 | R150: 2020-04-02 | S150: 43923.25 | W150: 123
K151: 2020-04-03 | L151: -9 | N151: =tWeightDaily[[#This Row],[Gewicht]]-Ausgangsgewicht -> -9 | O151: 122.8 | R151: 2020-04-03 | S151: 43924.25 | W151: 122.8
K152: 2020-04-04 | L152: -9.3 | N152: =tWeightDaily[[#This Row],[Gewicht]]-Ausgangsgewicht -> -9.3 | O152: 122.5 | R152: 2020-04-04 | S152: 43925.25 | W152: 122.5
K153: 2020-04-05 | L153: -9.4 | M153: -9.4 | N153: =tWeightDaily[[#This Row],[Gewicht]]-Ausgangsgewicht -> -9.4 | O153: 122.4 | R153: 2020-04-05 | S153: 43926.25 | W153: 122.4
K154: 2020-04-06 | L154: -8.1 | M154: -8.1 | N154: =tWeightDaily[[#This Row],[Gewicht]]-Ausgangsgewicht -> -8.1 | O154: 123.7 | R154: 2020-04-06 | S154: 43927.25 | W154: 123.7
K155: 2020-04-08 | L155: -8.4 | N155: =tWeightDaily[[#This Row],[Gewicht]]-Ausgangsgewicht -> -8.4 | O155: 123.4 | R155: 2020-04-08 | S155: 43929.25 | W155: 123.4
K156: 2020-04-11 | L156: -10.2 | M156: -10.2 | N156: =tWeightDaily[[#This Row],[Gewicht]]-Ausgangsgewicht -> -10.2 | O156: 121.6 | R156: 2020-04-11 | S156: 43932.25 | W156: 121.6
K157: 2020-04-12 | L157: -9.7 | M157: -9.7 | N157: =tWeightDaily[[#This Row],[Gewicht]]-Ausgangsgewicht -> -9.7 | O157: 122.1 | R157: 2020-04-12 | S157: 43933.25 | W157: 122.1
K158: 2020-04-13 | L158: -10.2 | M158: -10.2 | N158: =tWeightDaily[[#This Row],[Gewicht]]-Ausgangsgewicht -> -10.2 | O158: 121.6 | R158: 2020-04-13 | S158: 43934.25 | W158: 121.6
K159: 2020-04-14 | M159: -9.4 | N159: =tWeightDaily[[#This Row],[Gewicht]]-Ausgangsgewicht -> -9.4 | O159: 122.4 | R159: 2020-04-14 | S159: 43935.25 | W159: 122.4
K160: 2020-04-15 | L160: -9 | M160: -9 | N160: =tWeightDaily[[#This Row],[Gewicht]]-Ausgangsgewicht -> -9 | O160: 122.8 | R160: 2020-04-15 | S160: 43936.25 | W160: 122.8
K161: 2020-04-16 | L161: -10.2 | N161: =tWeightDaily[[#This Row],[Gewicht]]-Ausgangsgewicht -> -10.2 | O161: 121.6 | R161: 2020-04-16 | S161: 43937.25 | W161: 121.6
K162: 2020-04-17 | L162: -10.4 | M162: -10.4 | N162: =tWeightDaily[[#This Row],[Gewicht]]-Ausgangsgewicht -> -10.4 | O162: 121.4 | R162: 2020-04-17 | S162: 43938.25 | W162: 121.4
K163: 2020-04-18 | L163: -10.3 | M163: -10.3 | N163: =tWeightDaily[[#This Row],[Gewicht]]-Ausgangsgewicht -> -10.3 | O163: 121.5 | R163: 2020-04-18 | S163: 43939.25 | W163: 121.5
K164: 2020-04-19 | L164: -10.3 | N164: =tWeightDaily[[#This Row],[Gewicht]]-Ausgangsgewicht -> -10.3 | O164: 121.5 | R164: 2020-04-19 | S164: 43940.25 | W164: 121.5
K165: 2020-04-20 | L165: -10.4 | M165: -10.4 | N165: =tWeightDaily[[#This Row],[Gewicht]]-Ausgangsgewicht -> -10.4 | O165: 121.4 | R165: 2020-04-20 | S165: 43941.25 | W165: 121.4
K166: 2020-04-21 | M166: -10.2 | N166: =tWeightDaily[[#This Row],[Gewicht]]-Ausgangsgewicht -> -10.2 | O166: 121.6 | R166: 2020-04-21 | S166: 43942.25 | W166: 121.6
K167: 2020-04-22 | L167: -9.8 | M167: -9.8 | N167: =tWeightDaily[[#This Row],[Gewicht]]-Ausgangsgewicht -> -9.8 | O167: 122 | R167: 2020-04-22 | S167: 43943.25 | W167: 122
K168: 2020-04-23 | L168: -10.6 | M168: -10.6 | N168: =tWeightDaily[[#This Row],[Gewicht]]-Ausgangsgewicht -> -10.6 | O168: 121.2 | R168: 2020-04-23 | S168: 43944.25 | W168: 121.2
K169: 2020-04-24 | L169: -9.6 | M169: -9.6 | N169: =tWeightDaily[[#This Row],[Gewicht]]-Ausgangsgewicht -> -9.6 | O169: 122.2 | R169: 2020-04-24 | S169: 43945.25 | W169: 122.2
K170: 2020-04-25 | L170: -10.4 | M170: -10.4 | N170: =tWeightDaily[[#This Row],[Gewicht]]-Ausgangsgewicht -> -10.4 | O170: 121.4 | R170: 2020-04-25 | S170: 43946.25 | W170: 121.4
K171: 2020-04-26 | L171: -9.8 | M171: -9.8 | N171: =tWeightDaily[[#This Row],[Gewicht]]-Ausgangsgewicht -> -9.8 | O171: 122 | R171: 2020-04-26 | S171: 43947.25 | W171: 122
K172: 2020-04-29 | L172: -10.2 | N172: =tWeightDaily[[#This Row],[Gewicht]]-Ausgangsgewicht -> -10.2 | O172: 121.6 | R172: 2020-04-29 | S172: 43950.25 | W172: 121.6
K173: 2020-04-30 | L173: -10.2 | N173: =tWeightDaily[[#This Row],[Gewicht]]-Ausgangsgewicht -> -10.2 | O173: 121.6 | R173: 2020-04-30 | S173: 43951.25 | W173: 121.6
K174: 2020-05-01 | L174: -10.5 | N174: =tWeightDaily[[#This Row],[Gewicht]]-Ausgangsgewicht -> -10.5 | O174: 121.3 | R174: 2020-05-01 | S174: 43952.25 | W174: 121.3
K175: 2020-05-02 | L175: -10.5 | M175: -10.5 | N175: =tWeightDaily[[#This Row],[Gewicht]]-Ausgangsgewicht -> -10.5 | O175: 121.3 | R175: 2020-05-02 | S175: 43953.25 | W175: 121.3
K176: 2020-05-03 | L176: -9.8 | M176: -9.8 | N176: =tWeightDaily[[#This Row],[Gewicht]]-Ausgangsgewicht -> -9.8 | O176: 122 | R176: 2020-05-03 | S176: 43954.25 | W176: 122
K177: 2020-05-04 | L177: -9.9 | N177: =tWeightDaily[[#This Row],[Gewicht]]-Ausgangsgewicht -> -9.9 | O177: 121.9 | R177: 2020-05-04 | S177: 43955.25 | W177: 121.9
K178: 2020-05-06 | L178: -10.7 | N178: =tWeightDaily[[#This Row],[Gewicht]]-Ausgangsgewicht -> -10.7 | O178: 121.1 | R178: 2020-05-06 | S178: 43957.25 | W178: 121.1
K179: 2020-05-07 | L179: -11.1 | N179: =tWeightDaily[[#This Row],[Gewicht]]-Ausgangsgewicht -> -11.1 | O179: 120.7 | R179: 2020-05-07 | S179: 43958.25 | W179: 120.7
K180: 2020-05-08 | L180: -11.3 | M180: -11.3 | N180: =tWeightDaily[[#This Row],[Gewicht]]-Ausgangsgewicht -> -11.3 | O180: 120.5 | R180: 2020-05-08 | S180: 43959.25 | W180: 120.5
K181: 2020-05-09 | M181: -11.1 | N181: =tWeightDaily[[#This Row],[Gewicht]]-Ausgangsgewicht -> -11.1 | O181: 120.7 | R181: 2020-05-09 | S181: 43960.25 | W181: 120.7
K182: 2020-05-10 | M182: -10.6 | N182: =tWeightDaily[[#This Row],[Gewicht]]-Ausgangsgewicht -> -10.6 | O182: 121.2 | R182: 2020-05-10 | S182: 43961.25 | W182: 121.2
K183: 2020-05-11 | L183: -10.4 | M183: -10.4 | N183: =tWeightDaily[[#This Row],[Gewicht]]-Ausgangsgewicht -> -10.4 | O183: 121.4 | R183: 2020-05-11 | S183: 43962.25 | W183: 121.4
K184: 2020-05-13 | L184: -10.9 | N184: =tWeightDaily[[#This Row],[Gewicht]]-Ausgangsgewicht -> -10.9 | O184: 120.9 | R184: 2020-05-13 | S184: 43964.25 | W184: 120.9
K185: 2020-05-14 | L185: -10.9 | M185: -10.9 | N185: =tWeightDaily[[#This Row],[Gewicht]]-Ausgangsgewicht -> -10.9 | O185: 120.9 | R185: 2020-05-14 | S185: 43965.25 | W185: 120.9
K186: 2020-05-15 | L186: -10.3 | M186: -10.3 | N186: =tWeightDaily[[#This Row],[Gewicht]]-Ausgangsgewicht -> -10.3 | O186: 121.5 | R186: 2020-05-15 | S186: 43966.25 | W186: 121.5
K187: 2020-05-16 | L187: -10.6 | N187: =tWeightDaily[[#This Row],[Gewicht]]-Ausgangsgewicht -> -10.6 | O187: 121.2 | R187: 2020-05-16 | S187: 43967.25 | W187: 121.2
K188: 2020-05-17 | L188: -10.9 | M188: -10.9 | N188: =tWeightDaily[[#This Row],[Gewicht]]-Ausgangsgewicht -> -10.9 | O188: 120.9 | R188: 2020-05-17 | S188: 43968.25 | W188: 120.9
K189: 2020-05-18 | L189: -10.8 | M189: -10.8 | N189: =tWeightDaily[[#This Row],[Gewicht]]-Ausgangsgewicht -> -10.8 | O189: 121 | R189: 2020-05-18 | S189: 43969.25 | W189: 121
K190: 2020-05-19 | L190: -11 | M190: -11 | N190: =tWeightDaily[[#This Row],[Gewicht]]-Ausgangsgewicht -> -11 | O190: 120.8 | R190: 2020-05-19 | S190: 43970.25 | W190: 120.8
K191: 2020-05-20 | M191: -10.9 | N191: =tWeightDaily[[#This Row],[Gewicht]]-Ausgangsgewicht -> -10.9 | O191: 120.9 | R191: 2020-05-20 | S191: 43971.25 | W191: 120.9
K192: 2020-05-21 | M192: -10.7 | N192: =tWeightDaily[[#This Row],[Gewicht]]-Ausgangsgewicht -> -10.7 | O192: 121.1 | R192: 2020-05-21 | S192: 43972.25 | W192: 121.1
K193: 2020-05-22 | L193: -9.8 | M193: -9.8 | N193: =tWeightDaily[[#This Row],[Gewicht]]-Ausgangsgewicht -> -9.8 | O193: 122 | R193: 2020-05-22 | S193: 43973.25 | W193: 122
K194: 2020-05-24 | L194: -10.8 | N194: =tWeightDaily[[#This Row],[Gewicht]]-Ausgangsgewicht -> -10.8 | O194: 121 | R194: 2020-05-24 | S194: 43975.25 | W194: 121
K195: 2020-05-25 | L195: -10.8 | M195: -10.8 | N195: =tWeightDaily[[#This Row],[Gewicht]]-Ausgangsgewicht -> -10.8 | O195: 121 | R195: 2020-05-25 | S195: 43976.25 | W195: 121
K196: 2020-05-26 | L196: -10.2 | M196: -10.2 | N196: =tWeightDaily[[#This Row],[Gewicht]]-Ausgangsgewicht -> -10.2 | O196: 121.6 | R196: 2020-05-26 | S196: 43977.25 | W196: 121.6
K197: 2020-05-27 | L197: -10.8 | M197: -10.8 | N197: =tWeightDaily[[#This Row],[Gewicht]]-Ausgangsgewicht -> -10.8 | O197: 121 | R197: 2020-05-27 | S197: 43978.25 | W197: 121
K198: 2020-05-30 | M198: -9.9 | N198: =tWeightDaily[[#This Row],[Gewicht]]-Ausgangsgewicht -> -9.9 | O198: 121.9 | R198: 2020-05-30 | S198: 43981.25 | W198: 121.9
K199: 2020-05-31 | L199: -9.8 | M199: -9.8 | N199: =tWeightDaily[[#This Row],[Gewicht]]-Ausgangsgewicht -> -9.8 | O199: 122 | R199: 2020-05-31 | S199: 43982.25 | W199: 122
K200: 2020-06-01 | L200: -10.4 | M200: -10.4 | N200: =tWeightDaily[[#This Row],[Gewicht]]-Ausgangsgewicht -> -10.4 | O200: 121.4 | R200: 2020-06-01 | S200: 43983.25 | W200: 121.4
K201: 2020-06-02 | L201: -9.5 | M201: -9.5 | N201: =tWeightDaily[[#This Row],[Gewicht]]-Ausgangsgewicht -> -9.5 | O201: 122.3 | R201: 2020-06-02 | S201: 43984.25 | W201: 122.3
... 31 more rows

Sheet Report_Gew90Tage (hidden)
A1: Name: | B1: =Nachname&", "&Vorname -> , | D1: Geburtsdatum: | E1: =Geburtsdatum -> 00:00:00 | G1: Betrachtungszeitraum: | J1: 12. Apr. 2020 - 11. Jul. 2020
A2: Gewicht der letzten 90 Tage (Verlaufsdokumentation)
A4: Min. Gewicht: | B4: 119.6 | C4: kg | D4: Max. Gewicht: | E4: 122.8 | F4: kg | H4: Aktuelles Gewicht: | I4: 120.1 | J4: kg

Sheet Report_GewJahr (hidden)
A1: Name: | B1: =Nachname&", "&Vorname -> , | D1: Geburtsdatum: | E1: =Geburtsdatum -> 00:00:00 | G1: Betrachtungszeitraum: | J1: 19. Okt. 2019 - 11. Jul. 2020
A2: Gewicht (Verlaufsdokumentation, wöchentliche Mittelwerte)
N5: Woche | O5: 2020 | P5: 2019
N6: 1 | O6: 128
N7: 2 | O7: 126.05
N8: 3 | O8: 124
N9: 4 | O9: 123.9428571
N10: 5 | O10: 123.85
N11: 6 | O11: 124.4833333
N12: 7 | O12: 124.1714286
N13: 8 | O13: 124.2333333
N14: 9 | O14: 123.6714286
N15: 10 | O15: 123.88
N16: 11 | O16: 123.84
N17: 12 | O17: 123.1
N18: 13 | O18: 122.85
N19: 14 | O19: 122.9166667
N20: 15 | O20: 122.7
N21: 16 | O21: 121.8285714
N22: 17 | O22: 121.6857143
N23: 18 | O23: 121.56
N24: 19 | O24: 121.0166667
N25: 20 | O25: 121.1333333
N26: 21 | O26: 121.1333333
N27: 22 | O27: 121.5
N28: 23 | O28: 121.9571429
N29: 24 | O29: 121.7428571
N30: 25 | O30: 121.2714286
N31: 26 | O31: 120.58
N32: 27 | O32: 120.3571429
N33: 28 | O33: 120.2833333
N34: 29
N35: 30
N36: 31
N37: 32
N38: 33
N39: 34
N40: 35
N41: 36
N42: 37
N43: 38
N44: 39
N45: 40
N46: 41
N47: 42 | P47: 131.8
N48: 43 | P48: 131.1333333
N49: 44 | P49: 131.0428571
N50: 45 | P50: 131
N51: 46 | P51: 130.7714286
N52: 47 | P52: 130.3714286
N53: 48 | P53: 130.0285714
N54: 49 | P54: 129.4571429
N55: 50 | P55: 129.4428571
N56: 51 | P56: 128.25
N57: 52 | P57: 128.4142857
N58: 53

Sheet Report_GewReduktion (hidden)
A1: Name: | B1: =Nachname&", "&Vorname -> , | D1: Geburtsdatum: | E1: =Geburtsdatum -> 00:00:00 | I1: Betrachtungszeitraum: | M1: 19. Okt. 2019 - 11. Jul. 2020
A2: Gewichtsreduzierung (wöchentlicher Stichtagswert)
A4: Startdatum: | B4: 2019-10-23 | F4: Ausgangsgewicht: | G4: 131.8 | H4: kg | J4: Ausgangs-BMI: | K4: =Ausgangsgewicht/(Körpergröße*Körpergröße/10000) ->  | L4: kg/m²
A6: Wiegetag: | B6: 1900-01-07 | F6: Aktuelles Gewicht: | G6: 120.1 | H6: kg | J6: Aktueller BMI: | K6: =Aktuelles_Gewicht/(Körpergröße*Körpergröße/10000) ->  | L6: kg/m²
O7: =COLUMN() -> 15 | P7: =COLUMN() -> 16 | Q7: =COLUMN() -> 17 | R7: =COLUMN() -> 18 | S7: =COLUMN() -> 19
O8: Tag | P8: Veränd_neg | Q8: Veränd_pos | R8: Veränderung | S8: Gewicht | T8: Untergewicht | U8: Normalgewicht | V8: Leichtes Übergew. | W8: Übergewicht | AA8: =getvalue(MIN(ROW(tWeightWeekly[]))+ROWS(tWeightWeekly[])-1, 18)/((getvalue(MIN(ROW(tWeightWeekly[]))+ROWS(tWeightWeekly[])-1, 15)-getvalue(MIN(ROW(tWeightWeekly[])), 15))/30) -> 
O9: 2019-10-19 | P9: =tWeightWeekly[[#This Row],[Gewicht]]-Ausgangsgewicht -> 0 | R9: 0 | S9: 131.8 | T9: -74.4832 | U9: -20.3136 | V9: -13.5424 | W9: -23.4608
O10: 2019-10-26 | P10: =tWeightWeekly[[#This Row],[Gewicht]]-Ausgangsgewicht -> -0.9 | Q10: =tWeightWeekly[[#This Row],[Gewicht]]-Ausgangsgewicht -> -0.9 | R10: =tWeightWeekly[[#This Row],[Gewicht]]-Ausgangsgewicht -> -0.9 | S10: 130.9 | T10: -74.4832 | U10: -20.3136 | V10: -13.5424 | W10: -23.4608
O11: 2019-11-02 | P11: =tWeightWeekly[[#This Row],[Gewicht]]-Ausgangsgewicht -> -0.7 | Q11: =tWeightWeekly[[#This Row],[Gewicht]]-Ausgangsgewicht -> -0.7 | R11: =tWeightWeekly[[#This Row],[Gewicht]]-Ausgangsgewicht -> -0.7 | S11: 131.1 | T11: -74.4832 | U11: -20.3136 | V11: -13.5424 | W11: -23.4608
O12: 2019-11-09 | P12: =tWeightWeekly[[#This Row],[Gewicht]]-Ausgangsgewicht -> -0.7 | R12: =tWeightWeekly[[#This Row],[Gewicht]]-Ausgangsgewicht -> -0.7 | S12: 131.1 | T12: -74.4832 | U12: -20.3136 | V12: -13.5424 | W12: -23.4608
O13: 2019-11-16 | P13: =tWeightWeekly[[#This Row],[Gewicht]]-Ausgangsgewicht -> -1 | R13: =tWeightWeekly[[#This Row],[Gewicht]]-Ausgangsgewicht -> -1 | S13: 130.8 | T13: -74.4832 | U13: -20.3136 | V13: -13.5424 | W13: -23.4608
O14: 2019-11-23 | P14: =tWeightWeekly[[#This Row],[Gewicht]]-Ausgangsgewicht -> -1.5 | R14: =tWeightWeekly[[#This Row],[Gewicht]]-Ausgangsgewicht -> -1.5 | S14: 130.3 | T14: -74.4832 | U14: -20.3136 | V14: -13.5424 | W14: -23.4608
O15: 2019-11-30 | P15: =tWeightWeekly[[#This Row],[Gewicht]]-Ausgangsgewicht -> -1.9 | R15: =tWeightWeekly[[#This Row],[Gewicht]]-Ausgangsgewicht -> -1.9 | S15: 129.9 | T15: -74.4832 | U15: -20.3136 | V15: -13.5424 | W15: -23.4608
O16: 2019-12-07 | P16: =tWeightWeekly[[#This Row],[Gewicht]]-Ausgangsgewicht -> -2.8 | R16: =tWeightWeekly[[#This Row],[Gewicht]]-Ausgangsgewicht -> -2.8 | S16: 129 | T16: -74.4832 | U16: -20.3136 | V16: -13.5424 | W16: -23.4608
O17: 2019-12-14 | P17: =tWeightWeekly[[#This Row],[Gewicht]]-Ausgangsgewicht -> -3.1 | R17: =tWeightWeekly[[#This Row],[Gewicht]]-Ausgangsgewicht -> -3.1 | S17: 128.7 | T17: -74.4832 | U17: -20.3136 | V17: -13.5424 | W17: -23.4608
O18: 2019-12-21 | P18: =tWeightWeekly[[#This Row],[Gewicht]]-Ausgangsgewicht -> -3.5 | Q18: =tWeightWeekly[[#This Row],[Gewicht]]-Ausgangsgewicht -> -3.5 | R18: =tWeightWeekly[[#This Row],[Gewicht]]-Ausgangsgewicht -> -3.5 | S18: 128.3 | T18: -74.4832 | U18: -20.3136 | V18: -13.5424 | W18: -23.4608
O19: 2019-12-28 | P19: =tWeightWeekly[[#This Row],[Gewicht]]-Ausgangsgewicht -> -3.2 | Q19: =tWeightWeekly[[#This Row],[Gewicht]]-Ausgangsgewicht -> -3.2 | R19: =tWeightWeekly[[#This Row],[Gewicht]]-Ausgangsgewicht -> -3.2 | S19: 128.6 | T19: -74.4832 | U19: -20.3136 | V19: -13.5424 | W19: -23.4608
O20: 2020-01-04 | P20: =tWeightWeekly[[#This Row],[Gewicht]]-Ausgangsgewicht -> -4.3 | R20: =tWeightWeekly[[#This Row],[Gewicht]]-Ausgangsgewicht -> -4.3 | S20: 127.5 | T20: -74.4832 | U20: -20.3136 | V20: -13.5424 | W20: -23.4608
O21: 2020-01-11 | P21: =tWeightWeekly[[#This Row],[Gewicht]]-Ausgangsgewicht -> -6 | R21: =tWeightWeekly[[#This Row],[Gewicht]]-Ausgangsgewicht -> -6 | S21: 125.8 | T21: -74.4832 | U21: -20.3136 | V21: -13.5424 | W21: -23.4608
O22: 2020-01-18 | P22: =tWeightWeekly[[#This Row],[Gewicht]]-Ausgangsgewicht -> -8 | R22: =tWeightWeekly[[#This Row],[Gewicht]]-Ausgangsgewicht -> -8 | S22: 123.8 | T22: -74.4832 | U22: -20.3136 | V22: -13.5424 | W22: -23.4608
O23: 2020-01-25 | P23: =tWeightWeekly[[#This Row],[Gewicht]]-Ausgangsgewicht -> -8.2 | Q23: =tWeightWeekly[[#This Row],[Gewicht]]-Ausgangsgewicht -> -8.2 | R23: =tWeightWeekly[[#This Row],[Gewicht]]-Ausgangsgewicht -> -8.2 | S23: 123.6 | T23: -74.4832 | U23: -20.3136 | V23: -13.5424 | W23: -23.4608
O24: 2020-02-01 | Q24: =tWeightWeekly[[#This Row],[Gewicht]]-Ausgangsgewicht -> -7.4 | R24: =tWeightWeekly[[#This Row],[Gewicht]]-Ausgangsgewicht -> -7.4 | S24: 124.4 | T24: -74.4832 | U24: -20.3136 | V24: -13.5424 | W24: -23.4608
O25: 2020-02-08 | P25: =tWeightWeekly[[#This Row],[Gewicht]]-Ausgangsgewicht -> -7.3 | Q25: =tWeightWeekly[[#This Row],[Gewicht]]-Ausgangsgewicht -> -7.3 | R25: =tWeightWeekly[[#This Row],[Gewicht]]-Ausgangsgewicht -> -7.3 | S25: 124.5 | T25: -74.4832 | U25: -20.3136 | V25: -13.5424 | W25: -23.4608
O26: 2020-02-15 | P26: =tWeightWeekly[[#This Row],[Gewicht]]-Ausgangsgewicht -> -8.2 | Q26: =tWeightWeekly[[#This Row],[Gewicht]]-Ausgangsgewicht -> -8.2 | R26: =tWeightWeekly[[#This Row],[Gewicht]]-Ausgangsgewicht -> -8.2 | S26: 123.6 | T26: -74.4832 | U26: -20.3136 | V26: -13.5424 | W26: -23.4608
O27: 2020-02-22 | P27: =tWeightWeekly[[#This Row],[Gewicht]]-Ausgangsgewicht -> -7.3 | Q27: =tWeightWeekly[[#This Row],[Gewicht]]-Ausgangsgewicht -> -7.3 | R27: =tWeightWeekly[[#This Row],[Gewicht]]-Ausgangsgewicht -> -7.3 | S27: 124.5 | T27: -74.4832 | U27: -20.3136 | V27: -13.5424 | W27: -23.4608
O28: 2020-02-29 | P28: =tWeightWeekly[[#This Row],[Gewicht]]-Ausgangsgewicht -> -8.5 | Q28: =tWeightWeekly[[#This Row],[Gewicht]]-Ausgangsgewicht -> -8.5 | R28: =tWeightWeekly[[#This Row],[Gewicht]]-Ausgangsgewicht -> -8.5 | S28: 123.3 | T28: -74.4832 | U28: -20.3136 | V28: -13.5424 | W28: -23.4608
O29: 2020-03-07 | Q29: =tWeightWeekly[[#This Row],[Gewicht]]-Ausgangsgewicht -> -7.8 | R29: =tWeightWeekly[[#This Row],[Gewicht]]-Ausgangsgewicht -> -7.8 | S29: 124 | T29: -74.4832 | U29: -20.3136 | V29: -13.5424 | W29: -23.4608
O30: 2020-03-14 | P30: =tWeightWeekly[[#This Row],[Gewicht]]-Ausgangsgewicht -> -7.6 | Q30: =tWeightWeekly[[#This Row],[Gewicht]]-Ausgangsgewicht -> -7.6 | R30: =tWeightWeekly[[#This Row],[Gewicht]]-Ausgangsgewicht -> -7.6 | S30: 124.2 | T30: -74.4832 | U30: -20.3136 | V30: -13.5424 | W30: -23.4608
O31: 2020-03-21 | P31: =tWeightWeekly[[#This Row],[Gewicht]]-Ausgangsgewicht -> -8.9 | Q31: =tWeightWeekly[[#This Row],[Gewicht]]-Ausgangsgewicht -> -8.9 | R31: =tWeightWeekly[[#This Row],[Gewicht]]-Ausgangsgewicht -> -8.9 | S31: 122.9 | T31: -74.4832 | U31: -20.3136 | V31: -13.5424 | W31: -23.4608
O32: 2020-03-28 | P32: =tWeightWeekly[[#This Row],[Gewicht]]-Ausgangsgewicht -> -8.6 | Q32: =tWeightWeekly[[#This Row],[Gewicht]]-Ausgangsgewicht -> -8.6 | R32: =tWeightWeekly[[#This Row],[Gewicht]]-Ausgangsgewicht -> -8.6 | S32: 123.2 | T32: -74.4832 | U32: -20.3136 | V32: -13.5424 | W32: -23.4608
O33: 2020-04-04 | P33: =tWeightWeekly[[#This Row],[Gewicht]]-Ausgangsgewicht -> -9.3 | R33: =tWeightWeekly[[#This Row],[Gewicht]]-Ausgangsgewicht -> -9.3 | S33: 122.5 | T33: -74.4832 | U33: -20.3136 | V33: -13.5424 | W33: -23.4608
O34: 2020-04-11 | P34: =tWeightWeekly[[#This Row],[Gewicht]]-Ausgangsgewicht -> -10.2 | R34: =tWeightWeekly[[#This Row],[Gewicht]]-Ausgangsgewicht -> -10.2 | S34: 121.6 | T34: -74.4832 | U34: -20.3136 | V34: -13.5424 | W34: -23.4608
O35: 2020-04-18 | P35: =tWeightWeekly[[#This Row],[Gewicht]]-Ausgangsgewicht -> -10.3 | R35: =tWeightWeekly[[#This Row],[Gewicht]]-Ausgangsgewicht -> -10.3 | S35: 121.5 | T35: -74.4832 | U35: -20.3136 | V35: -13.5424 | W35: -23.4608
O36: 2020-04-25 | P36: =tWeightWeekly[[#This Row],[Gewicht]]-Ausgangsgewicht -> -10.4 | R36: =tWeightWeekly[[#This Row],[Gewicht]]-Ausgangsgewicht -> -10.4 | S36: 121.4 | T36: -74.4832 | U36: -20.3136 | V36: -13.5424 | W36: -23.4608
O37: 2020-05-02 | P37: =tWeightWeekly[[#This Row],[Gewicht]]-Ausgangsgewicht -> -10.5 | R37: =tWeightWeekly[[#This Row],[Gewicht]]-Ausgangsgewicht -> -10.5 | S37: 121.3 | T37: -74.4832 | U37: -20.3136 | V37: -13.5424 | W37: -23.4608
O38: 2020-05-09 | P38: =tWeightWeekly[[#This Row],[Gewicht]]-Ausgangsgewicht -> -11.1 | Q38: =tWeightWeekly[[#This Row],[Gewicht]]-Ausgangsgewicht -> -11.1 | R38: =tWeightWeekly[[#This Row],[Gewicht]]-Ausgangsgewicht -> -11.1 | S38: 120.7 | T38: -74.4832 | U38: -20.3136 | V38: -13.5424 | W38: -23.4608
O39: 2020-05-16 | Q39: =tWeightWeekly[[#This Row],[Gewicht]]-Ausgangsgewicht -> -10.6 | R39: =tWeightWeekly[[#This Row],[Gewicht]]-Ausgangsgewicht -> -10.6 | S39: 121.2 | T39: -74.4832 | U39: -20.3136 | V39: -13.5424 | W39: -23.4608
O40: 2020-05-23 | P40: =tWeightWeekly[[#This Row],[Gewicht]]-Ausgangsgewicht -> -9.8 | Q40: =tWeightWeekly[[#This Row],[Gewicht]]-Ausgangsgewicht -> -9.8 | R40: =tWeightWeekly[[#This Row],[Gewicht]]-Ausgangsgewicht -> -9.8 | S40: 122 | T40: -74.4832 | U40: -20.3136 | V40: -13.5424 | W40: -23.4608
O41: 2020-05-30 | P41: =tWeightWeekly[[#This Row],[Gewicht]]-Ausgangsgewicht -> -9.9 | Q41: =tWeightWeekly[[#This Row],[Gewicht]]-Ausgangsgewicht -> -9.9 | R41: =tWeightWeekly[[#This Row],[Gewicht]]-Ausgangsgewicht -> -9.9 | S41: 121.9 | T41: -74.4832 | U41: -20.3136 | V41: -13.5424 | W41: -23.4608
O42: 2020-06-06 | P42: =tWeightWeekly[[#This Row],[Gewicht]]-Ausgangsgewicht -> -9.4 | Q42: =tWeightWeekly[[#This Row],[Gewicht]]-Ausgangsgewicht -> -9.4 | R42: =tWeightWeekly[[#This Row],[Gewicht]]-Ausgangsgewicht -> -9.4 | S42: 122.4 | T42: -74.4832 | U42: -20.3136 | V42: -13.5424 | W42: -23.4608
O43: 2020-06-13 | P43: =tWeightWeekly[[#This Row],[Gewicht]]-Ausgangsgewicht -> -10.4 | R43: =tWeightWeekly[[#This Row],[Gewicht]]-Ausgangsgewicht -> -10.4 | S43: 121.4 | T43: -74.4832 | U43: -20.3136 | V43: -13.5424 | W43: -23.4608
O44: 2020-06-20 | P44: =tWeightWeekly[[#This Row],[Gewicht]]-Ausgangsgewicht -> -11 | R44: =tWeightWeekly[[#This Row],[Gewicht]]-Ausgangsgewicht -> -11 | S44: 120.8 | T44: -74.4832 | U44: -20.3136 | V44: -13.5424 | W44: -23.4608
O45: 2020-06-27 | P45: =tWeightWeekly[[#This Row],[Gewicht]]-Ausgangsgewicht -> -11.6 | Q45: =tWeightWeekly[[#This Row],[Gewicht]]-Ausgangsgewicht -> -11.6 | R45: =tWeightWeekly[[#This Row],[Gewicht]]-Ausgangsgewicht -> -11.6 | S45: 120.2 | T45: -74.4832 | U45: -20.3136 | V45: -13.5424 | W45: -23.4608
O46: 2020-07-04 | P46: =tWeightWeekly[[#This Row],[Gewicht]]-Ausgangsgewicht -> -11.4 | Q46: =tWeightWeekly[[#This Row],[Gewicht]]-Ausgangsgewicht -> -11.4 | R46: =tWeightWeekly[[#This Row],[Gewicht]]-Ausgangsgewicht -> -11.4 | S46: 120.4 | T46: -74.4832 | U46: -20.3136 | V46: -13.5424 | W46: -23.4608
O47: 2020-07-11 | P47: =tWeightWeekly[[#This Row],[Gewicht]]-Ausgangsgewicht -> -11.7 | R47: =tWeightWeekly[[#This Row],[Gewicht]]-Ausgangsgewicht -> -11.7 | S47: 120.1 | T47: -74.4832 | U47: -20.3136 | V47: -13.5424 | W47: -23.4608

Sheet data (hidden)
A1: Datum1 | B1: Tageszeit | C1: Sort | D1: Systolisch | E1: Diastolisch | F1: Puls | G1: Gewicht | H1: Bemerkung
C2: =tData[[#This Row],[Datum1]]+_xlfn.IFNA(VLOOKUP(tData[[#This Row],[Tageszeit]],tTageszeit[],3,FALSE), 0) -> 0

Sheet settings (hidden)
F2: Blutdruck-Grenzwerte | O2: Wochentage
B3: Tageszeit | C3: Index | D3: Zeitwert | F3: Limit syst. | G3: Limit diast. | H3: Kat. | J3: Bedeutung | K3: Wert | L3: Default | M3: Demo | O3: Datum | P3: Text
B4: Morgen | C4: 1 | D4: 0.25 | F4: 1 | G4: 1 | H4: 1 | J4: Letzter Wert vom: | K4: =MAX(tData[Datum1]) -> 00:00:00 | L4: =MAX(tData[Datum1]) -> 00:00:00 | O4: 1900-01-01 | P4: =TEXT(O4, "TTTT") -> Sonntag
B5: Mittag | C5: 2 | D5: 0.5 | F5: 90 | G5: 60 | H5: 2 | J5: Kalenderwoche: | K5: =WEEKNUM(K4,21)&"/"&YEAR(K4) -> 52/1900 | O5: 1900-01-02 | P5: =TEXT(O5, "TTTT") -> Montag
B6: Abend | C6: 3 | D6: 0.75 | F6: 120 | G6: 80 | H6: 3 | J6: 4W_Start: | K6: 2022-02-14 | L6: =$K4-WEEKDAY($K4,3)-21 -> -26 | O6: 1900-01-03 | P6: Dienstag
F7: 140 | G7: 90 | H7: 4 | J7: Nachname: | O7: 1900-01-04 | P7: Mittwoch
F8: 160 | G8: 100 | H8: 5 | J8: Vorname: | O8: 1900-01-05 | P8: Donnerstag
F9: 180 | G9: 110 | H9: 6 | J9: Geburtsdatum: | O9: 1900-01-06 | P9: Freitag
J10: Mittagswerte verw.: | K10: 1 | L10: 1 | O10: 1900-01-07 | P10: Samstag
J11: Geschlecht | K11: m | L11: m
J12: Körpergröße | K12: 0 | L12: 0
J13: Eingabedialog b. Start | K13: 0 | L13: 0
J14: DebugMode | K14: FALSE | L14: FALSE
B15: BMI-Tabelle nach Geschlecht & Alter
B16: Geschlecht | C16: Alter | D16: Untergewicht | E16: Normalgewicht | F16: leichtes Übergew. | G16: Übergewicht
B17: m | C17: 16 | D17: 18 | E17: 24 | F17: 28 | G17: 99
B18: m | C18: 17 | D18: 18 | E18: 24 | F18: 28 | G18: 99
B19: m | C19: 18 | D19: 18 | E19: 24 | F19: 28 | G19: 99
B20: m | C20: 19 | D20: 18 | E20: 24 | F20: 28 | G20: 99 | O20: Sheetname | P20: DefaultView | Q20: Default-Zelle
B21: m | C21: 25 | D21: 19 | E21: 25 | F21: 29 | G21: 99 | O21: data | P21: A | Q21: LastRow
B22: m | C22: 35 | D22: 20 | E22: 26 | F22: 30 | G22: 99 | O22: Report_4W | P22: A1 | Q22: A4
B23: m | C23: 45 | D23: 21 | E23: 27 | F23: 31 | G23: 99 | O23: Report_Gew90Tage | P23: A1 | Q23: A49
B24: m | C24: 55 | D24: 22 | E24: 28 | F24: 32 | G24: 99 | O24: Report_GewJahr | P24: A1 | Q24: A49
B25: m | C25: 65 | D25: 23 | E25: 29 | F25: 33 | G25: 99 | O25: Report_GewReduktion | P25: A1 | Q25: B4
B26: w | C26: 16 | D26: 18 | E26: 24 | F26: 28 | G26: 99
B27: w | C27: 17 | D27: 19 | E27: 25 | F27: 29 | G27: 99
B28: w | C28: 18 | D28: 19 | E28: 25 | F28: 29 | G28: 99
B29: w | C29: 19 | D29: 19 | E29: 25 | F29: 29 | G29: 99
B30: w | C30: 25 | D30: 20 | E30: 26 | F30: 30 | G30: 99
B31: w | C31: 35 | D31: 21 | E31: 27 | F31: 31 | G31: 99
B32: w | C32: 45 | D32: 22 | E32: 28 | F32: 32 | G32: 99
B33: w | C33: 55 | D33: 23 | E33: 29 | F33: 33 | G33: 99
B34: w | C34: 65 | D34: 24 | E34: 30 | F34: 34 | G34: 99
B35: Farbe | D35: Cyan | E35: Grün | F35: Gelb | G35: Rot
B36: Farbcode
